Cogmind - Beta 14 @@@ ROGUE MODE // 2025.01.18 @ 17:28:13 Player: Cog on my mind Result: Destroyed by Combat Programmer with EMDS Performance ------------- Evolutions (9) 4500 Regions Visited (28) 5600 Robots Destroyed (381) 1905 Value Destroyed (19880) 19880 Prototype IDs (119) 2380 Alien Tech Used (0) 0 Bonus (15047) 15047 TOTAL SCORE: 49312 Bonus ------- High Alert Combat Kills 1432 Follower Combat Kills 6241 Entered Garrisons 1400 Used RIF Installer 3500 Network Hubs Disabled 400 Aligned with FarCom 300 Built Enhanced Grunts 300 A7 Reached Mainframe 300 Met R17 at Cetus 500 Met R17 at Research 2000 Friendly Fire -1326 Cogmind --------- Core Integrity 0/1600 Matter 201/300 Energy 61/100 System Corruption 28% Temperature Cool (0) Movement Walking (110) Location -1/Command Parts ------- > --- POWER (2) -------- (None) > --- PROPULSION (6) --- Biometal Leg Biometal Leg Biometal Leg > --- UTILITY (13) ----- Graphene Brace > --- WEAPON (4) ------- (None) > --- INVENTORY (5) ---- Long-range Terrain Scanner Beam Splitter Improved Force Field Relay Coupler [Grunt] (39) Improved Plasma Cutter Peak State ------------ > --- POWER ------------ Quantum Reactor Light Quantum Reactor > --- PROPULSION ------- Advanced Heavy Treads Advanced Heavy Treads Centrium Heavy Treads > --- UTILITY ---------- Huge Storage Unit Long-range Terrain Scanner Experimental Phase Shifter Layered Light Armor Plating Centrium Medium Armor Plating Beam Splitter Improved Force Field Advanced Hacking Suite Relay Coupler [Swarmer] Relay Coupler [Grunt] Relay Coupler [Duelist] Relay Coupler [Hunter] Advanced Corruption Screen > --- WEAPON ----------- Hypervelocity Railgun Compact Mass Driver Advanced Remote Datajack Shock Maul > --- INVENTORY -------- Biometal Heavy Treads Experimental Biometal Medium Treads Experimental Biometal Medium Treads Centrium Wheel Experimental Matter Compressor Improved Phase Shifter Antimissile System Relay Coupler [NC] Relay Coupler [Grunt] Relay Coupler [Grunt] Relay Coupler [Brawler] Relay Coupler [Hunter] Relay Coupler [Heavy] Relay Coupler [Proto] Relay Coupler [Proto] Hypervelocity Railgun Compact Mass Driver Guided Micro-nuke Launcher Improved Plasma Cutter [Rating: 190] Favorites ----------- Power Cooled Ion Engine Engine Cooled Ion Engine Power Core Enhanced Fission Core Reactor Quantum Reactor Propulsion Wheel Treads Armored Medium Treads Leg Biometal Leg Wheel Wheel Hover Unit Aerolev Unit Utility Relay Coupler [Grunt] Device Structural Scanner Storage Huge Storage Unit Processor Advanced Targeting Computer Hackware Relay Coupler [Grunt] Protection Centrium Medium Armor Plating Weapon Advanced Remote Datajack Energy Gun Small Laser Energy Cannon Advanced Plasma Cannon Ballistic Gun Precision Assault Rifle Ballistic Cannon Flak Cannon Launcher Heavy Rocket Launcher Special Weapon Advanced Remote Datajack Impact Weapon Shock Maul Slashing Weapon Power Sword Piercing Weapon Lance Special Melee Weapon Improved Datajack Build | -11 -10 -10 -9 -9 -9 -8 -8 -8 -7 -7 -7 -7 -6 -6 -5 -5 -5 -5 -4 -4 -4 -4 -4 -3 -3 -2 -1 -1 ------- Run | Yrd Mat Min Mat Min Exi Min Mat Gar Fac Gar Fac Gar Fac Gar Fac Gar Fac Gar Fac Ext Cet Arc Hub Res Gar Res Acc Com Slots Evolved 18 | . . . 2 . . . 2 . 2 . . . 2 . 2 . . . 2 . . . . 2 . 2 2 . Power 1 | . . . . . . . . . . . . . . . . . . . . . . . . . . 1 . . Propulsion 4 | . . . 1 . . . . . 1 . . . . . . . . . 1 . . . . 1 . . . . Utility 11 | . . . 1 . . . 1 . 1 . . . 2 . 2 . . . 1 . . . . 1 . 1 1 . Weapon 2 | . . . . . . . 1 . . . . . . . . . . . . . . . . . . . 1 . Parts Attached 764 | 9 9 5 23 . . 3 24 25 37 19 26 13 32 27 60 22 65 25 108 16 15 5 9 30 16 61 48 32 Power 45 | 1 1 1 2 . . . 1 1 . 1 . . 4 . 6 1 3 2 3 . . . 2 2 . 8 3 3 Engine 15 | 1 1 1 2 . . . 1 1 . . . . 2 . 5 . . . 1 . . . . . . . . . Core 10 | . . . . . . . . . . . . . 2 . 1 . 3 1 1 . . . 1 1 . . . . Reactor 20 | . . . . . . . . . . 1 . . . . . 1 . 1 1 . . . 1 1 . 8 3 3 Propulsion 148 | 4 2 . 9 . . . 6 2 8 . 7 . 2 14 13 2 13 1 30 4 3 . . 11 1 6 . 10 Treads 50 | . . . 1 . . . 2 . 4 . 1 . . 8 3 . 3 1 11 1 2 . . 2 . 6 . 5 Leg 14 | . . . . . . . . . . . . . . 2 . . . . . . . . . 8 1 . . 3 Wheel 83 | 4 2 . 8 . . . 4 2 4 . 5 . 2 4 10 2 10 . 19 3 1 . . 1 . . . 2 Hover 1 | . . . . . . . . . . . 1 . . . . . . . . . . . . . . . . . Flight . | . . . . . . . . . . . . . . . . . . . . . . . . . . . . . Utility 371 | 2 1 1 4 . . 1 11 10 22 12 18 8 22 6 28 10 35 15 54 7 3 4 4 13 14 30 25 11 Device 199 | 1 . 1 3 . . . 5 6 14 4 14 1 13 3 16 1 22 3 34 4 1 1 2 8 1 16 19 6 Storage 14 | 1 1 . 1 . . . 1 . 1 . . . 1 . . . 1 1 . . . . . 2 . 2 1 1 Processor 15 | . . . . . . . 1 . 1 . . . . . 1 . . . 3 1 . . 2 1 . 2 2 1 Hackware 90 | . . . . . . . 1 1 3 4 3 6 4 2 6 9 7 9 9 2 . 2 . 1 12 5 2 2 Protection 53 | . . . . . . 1 3 3 3 4 1 1 4 1 5 . 5 2 8 . 2 1 . 1 1 5 1 1 Artifact . | . . . . . . . . . . . . . . . . . . . . . . . . . . . . . Weapon 200 | 2 5 3 8 . . 2 6 12 7 6 1 5 4 7 13 9 14 7 21 5 9 1 3 4 1 17 20 8 Energy Gun 8 | 1 2 . 2 . . . 1 . . . . . . . 1 . . . . . 1 . . . . . . . Energy Cannon 11 | . . . . . . . . . . . . . . . 2 . 3 . 5 1 . . . . . . . . Ballistic Gun 41 | 1 2 1 1 . . . 1 3 1 2 . . . 1 3 4 3 2 2 2 5 . 1 . . . 3 3 Ballistic Cannon 43 | . . 1 4 . . 2 4 3 1 . . 2 1 1 1 . 1 . 2 . 1 . . 2 1 5 9 2 Launcher 26 | . 1 1 . . . . . 2 1 . . 1 1 3 2 2 1 2 3 1 . . . . . 3 . 2 Special Weapon 41 | . . . 1 . . . . . 3 1 1 2 . 2 3 1 5 2 5 . 1 . 2 1 . 5 5 1 Impact Weapon 10 | . . . . . . . . 4 . . . . . . . . . . . . . . . . . 3 3 . Slashing Weapon 8 | . . . . . . . . . 1 3 . . 1 . 1 2 . . . . . . . . . . . . Piercing Weapon 11 | . . . . . . . . . . . . . . . . . 1 1 4 1 1 1 . 1 . 1 . . Special Melee Weapon 1 | . . . . . . . . . . . . . 1 . . . . . . . . . . . . . . . Unidentified Prototypes 37 | . . 1 1 . . . 2 . 2 . 1 . 2 . 3 1 3 . 5 . 4 . . 2 . 7 2 1 Parts Lost 124 | . 1 1 3 . . . 2 2 3 1 2 2 4 12 12 1 8 2 18 2 2 . 1 . 3 7 3 32 Power 9 | . 1 . . . . . 1 . . . . . 1 . . . . 1 . . . . . . . 1 . 4 Propulsion 44 | . . . 2 . . . 1 1 3 . 1 . . 7 6 1 2 . 7 2 1 . . . 1 2 . 7 Utility 42 | . . 1 1 . . . . . . . . . 2 1 3 . 2 . 8 . 1 . 1 . 2 4 2 14 Weapon 29 | . . . . . . . . 1 . 1 1 2 1 4 3 . 4 1 3 . . . . . . . 1 7 Highest Loss Streak 27 | . 1 1 2 . . . 1 1 2 1 1 1 2 3 9 1 2 1 3 1 2 . 1 . 1 3 2 27 To Critical Strikes 1 | . . . . . . . . . . . . . . . 1 . . . . . . . . . . . . . Average Slot Usage (%) 91 | . 98 100 98 100 77 99 98 99 97 91 86 79 82 87 91 97 91 86 97 98 98 93 90 90 97 90 86 71 Engine 3 | . 12 14 11 11 11 11 8 9 7 . . . 3 6 4 1 . . . 5 5 5 . . . . . . Reactor 2 | . . . . . . . . . . 6 7 7 . . . 3 . 3 4 . . . . . . 6 7 5 Treads 7 | . . . 7 11 11 11 8 9 14 7 5 . . 6 8 5 5 11 6 9 9 5 5 2 . 9 12 9 Leg 1 | . . . . . . . . . . . . . . 2 . . . . . . . . . 15 26 8 . . Wheel 12 | . 28 28 25 22 22 22 18 17 14 15 14 15 13 10 12 16 12 . 18 14 15 15 15 6 . . . . Device 7 | . 14 14 20 22 22 14 7 6 10 1 2 1 11 2 5 5 4 . 7 4 5 3 1 3 3 5 14 9 Storage 6 | . 14 14 11 11 11 11 9 9 7 7 7 7 6 6 5 5 5 5 5 5 5 5 5 4 4 4 4 3 Processor 1 | . . . . . . . 6 9 5 . . . . . 2 . . . . . . . 2 7 1 3 5 7 Hackware 24 | . . . . . . . . 2 6 23 24 25 25 34 30 32 34 36 37 41 36 40 38 31 36 31 21 20 Protection 3 | . . . . . . 7 12 8 4 5 1 . . 1 2 5 4 8 . . 4 2 . . 3 4 5 2 Ballistic Gun 3 | . 14 9 . . . . 4 7 13 10 4 . . 1 4 5 4 3 . . 8 10 8 1 . . 5 4 Ballistic Cannon 4 | . . 4 18 22 . 21 21 13 . . . 6 7 3 . . . . 2 . 1 . . 2 3 4 4 4 Special Weapon 2 | . . . . . . . . . 1 6 7 2 . . 2 5 4 4 4 5 2 . 1 4 4 3 2 2 Slashing Weapon 2 | . . . . . . . . . 6 4 7 7 5 5 2 4 2 . . . . . . . . . . . Piercing Weapon 1 | . . . . . . . . . . . . . . . . . . 4 4 4 2 4 5 4 4 1 . . Peak Build Rating 190 | 7 8 11 20 20 20 22 41 40 52 59 60 61 66 69 74 87 94 98 102 101 108 110 112 137 143 167 190 187 Average Rating 77 | 5 7 8 18 20 15 21 32 34 43 53 52 55 57 59 61 79 79 93 87 92 98 107 100 118 138 157 183 147 On Entrance 67 | . 7 7 11 20 20 16 22 35 35 48 59 52 59 66 49 73 83 94 96 84 93 106 110 99 137 134 150 186 Naked Turns . | . . . . . . . . . . . . . . . . . . . . . . . . . . . . . Heaviest Build 170 | 14 21 24 46 46 34 48 81 75 73 71 70 73 131 131 122 138 139 125 128 109 122 122 113 125 131 167 170 167 Greatest Support 240 | 32 26 26 36 20 20 20 30 26 68 44 56 56 56 95 95 48 140 140 90 56 42 36 36 162 162 240 220 220 Greatest Overweight (x) 11 | . 1 . 2 2 1 2 4 7 3 1 2 1 2 7 11 3 11 . 6 3 3 3 3 5 . 1 . 4 Average Overweight (x) 1 | . . . 1 2 1 1 2 2 2 1 1 1 . 2 2 2 2 . 1 2 2 2 2 . . . . . Largest Inventory Capacity 25 | 8 10 10 15 15 15 15 20 20 20 20 20 20 25 25 25 25 25 25 25 25 25 25 25 25 25 25 25 25 Average Capacity 22 | 7 9 10 13 15 15 15 19 20 20 20 20 20 21 25 25 25 25 25 25 25 25 25 25 25 25 25 25 20 Most Carried 25 | 3 6 10 14 14 15 15 20 20 20 20 20 20 21 24 25 25 25 25 25 25 25 25 25 25 25 25 25 25 Average Carried 20 | . 4 7 10 13 14 14 18 19 18 18 18 18 19 22 22 24 23 24 24 23 24 24 24 24 24 24 23 18 Final Capacity 25 | 8 10 10 15 15 15 15 20 20 20 20 20 20 25 25 25 25 25 25 25 25 25 25 25 25 25 25 25 5 Final Carried 25 | 3 6 8 13 14 15 15 20 19 18 20 19 20 19 21 24 25 24 25 24 24 25 25 25 25 25 24 24 5 Class Distribution -------------------- 37% | Botlord-Mutant 16% | Mutant 8% | Bothacker-Mutant 8% | Botlord-Assassin 4% | Hacker-Mutant 4% | Bothacker-Assassin 4% | Botlord-Tank 3% | Scavenger-Mutant 3% | Skirmisher Dominant Class ---------------- Scavenger-Mutant | -10/Materials Scavenger-Mutant | -10/Mines Mutant | -9/Materials Mutant | -9/Mines Mutant | -9/Exiles Mutant | -8/Mines Skirmisher | -8/Materials Mutant | -8/Garrison Mutant | -7/Factory Bothacker-Mutant | -7/Garrison Bothacker-Mutant | -7/Factory Mutant | -7/Garrison Bothacker-Assassin | -6/Factory Hacker-Mutant | -6/Garrison Botlord-Mutant | -5/Factory Botlord-Mutant | -5/Garrison Botlord-Mutant | -5/Factory Botlord-Mutant | -5/Garrison Botlord-Mutant | -4/Factory Botlord-Mutant | -4/Extension Botlord-Mutant | -4/Cetus Botlord-Mutant | -4/Archives Botlord-Mutant | -4/Hub_04(d) Botlord-Assassin | -3/Research Botlord-Mutant | -3/Garrison Botlord-Mutant | -2/Research Botlord-Assassin | -1/Access Mutant | -1/Command Resources | -11 -10 -10 -9 -9 -9 -8 -8 -8 -7 -7 -7 -7 -6 -6 -5 -5 -5 -5 -4 -4 -4 -4 -4 -3 -3 -2 -1 -1 ----------- Run | Yrd Mat Min Mat Min Exi Min Mat Gar Fac Gar Fac Gar Fac Gar Fac Gar Fac Gar Fac Ext Cet Arc Hub Res Gar Res Acc Com Matter Collected 20802 | 323 262 331 947 150 . 231 759 785 772 798 343 275 541 789 783 727 1618 664 2159 837 430 186 105 866 627 1460 2300 734 Remotely . | . . . . . . . . . . . . . . . . . . . . . . . . . . . . . Salvage Created 15851 | 126 332 331 1234 63 . 211 411 570 612 552 412 446 300 444 785 183 1335 500 1927 49 115 462 77 180 200 922 2691 381 Parts 850 | 8 22 24 87 12 . 6 26 36 34 23 28 28 27 18 48 7 76 24 79 3 2 27 5 5 18 47 103 27 Haulers Intercepted 19 | . 2 . 5 . . . 2 . . . 3 . . . . . . . 1 . . . . . . 3 3 . Recyclers Shooed 10 | . . 1 1 1 . . . . . . . . 2 . . . 2 . . . . . . 1 . . 1 1 Parts Field Recycled . | . . . . . . . . . . . . . . . . . . . . . . . . . . . . . Retrieved Matter . | . . . . . . . . . . . . . . . . . . . . . . . . . . . . . Parts Self-Destructed . | . . . . . . . . . . . . . . . . . . . . . . . . . . . . . Prevented . | . . . . . . . . . . . . . . . . . . . . . . . . . . . . . Kills | -11 -10 -10 -9 -9 -9 -8 -8 -8 -7 -7 -7 -7 -6 -6 -5 -5 -5 -5 -4 -4 -4 -4 -4 -3 -3 -2 -1 -1 ------- Run | Yrd Mat Min Mat Min Exi Min Mat Gar Fac Gar Fac Gar Fac Gar Fac Gar Fac Gar Fac Ext Cet Arc Hub Res Gar Res Acc Com Combat Hostiles Destroyed 247 | . 7 11 24 1 . 4 12 21 4 10 3 11 7 13 6 6 19 11 20 . 2 2 1 . 3 15 28 6 Melee 58 | . . . . . . . . 1 1 2 3 4 1 3 2 2 7 4 13 . . . 1 . 3 11 . . Guns 50 | . 4 3 . . . . 4 1 3 8 . . . . . . 5 2 . . 1 2 . . . . 13 4 Cannons 89 | . . 5 24 1 . 4 8 15 . . . 1 3 2 4 . 3 . 3 . 1 . . . . 4 9 2 AOE 44 | . 3 3 . . . . . 4 . . . 6 3 8 . 4 4 5 4 . . . . . . . . . Classes Destroyed 18 | 2 5 . 3 1 . . 1 3 . . . . . . 1 1 1 . . . . . . . . . . . Worker 25 | . . . . 2 . . 1 . 1 . 1 . 1 . 3 . 5 . 8 . . . . 1 . 1 1 . Builder 20 | . . . 3 1 . . . . 3 . . . 4 . 1 . 4 . 1 . . . 1 1 . . 1 . Tunneler 11 | 2 . 2 . 1 . 2 . . 1 . . . . . 2 . . . . . . . . . . . 1 . Hauler 19 | . 2 . 5 . . . 2 . . . 3 . . . . . . . 1 . . . . . . 3 3 . Recycler 20 | 1 . 1 1 . . 1 . . 4 . . . . . 2 . 1 . 5 . . . . 1 . . 3 . Mechanic 3 | . . . . . . . . . . . . . . . 1 . 2 . . . . . . . . . . . Operator 15 | . 1 . . . . . . . . . 1 . 1 1 2 . . . . . . 9 . . . . . . Watcher 18 | . 2 . 2 . . . . . 1 2 2 . . . 2 . 3 . . 2 . . . . . . 1 1 Swarmer 47 | . 3 5 . 1 . . 2 7 . . . 4 3 7 . 2 . 6 4 . . . . . . 1 . 2 Cutter 1 | . . . . . . . . 1 . . . . . . . . . . . . . . . . . . . . Grunt 90 | . 4 6 14 . . 3 6 4 1 5 2 5 3 4 3 1 6 1 8 . . . . . . . 14 . Brawler 4 | . . . 2 . . 1 . . . . . . . . . . 1 . . . . . . . . . . . Duelist 2 | . . . . . . . . . . . . . . . . 1 1 . . . . . . . . . . . Sentry 27 | . . . 8 . . . 3 4 1 . 1 . 1 1 . . . 2 1 . . 2 1 . . . 2 . Specialist 3 | . . . . . . . . 2 . 1 . . . . . . . . . . . . . . . . . . Hunter 3 | . . . . . . . . . . . . . . . . . 1 . . . . . . . . . 1 1 Programmer 70 | . . . . . . . . 3 2 4 . 2 1 1 3 2 10 2 8 . . . . . 3 14 12 3 Heavy 1 | . . . . . . . 1 . . . . . . . . . . . . . . . . . . . . . Cetus Guard 2 | . . . . . . . . . . . . . . . . . . . . . 2 . . . . . . . Best Kill Streak 8 | 2 3 6 6 1 . 3 5 4 2 2 2 6 3 4 3 4 8 3 4 1 2 6 1 1 1 2 8 2 Combat Bots Only 7 | . 3 4 4 1 . 3 4 4 2 2 1 6 3 4 3 4 4 3 3 . 2 2 1 . 1 2 7 2 Max Kills in Single Turn 4 | 1 3 2 2 1 . 1 2 4 1 1 1 3 3 2 1 2 3 3 2 1 1 1 1 1 1 1 3 1 Gunslinging . | . . . . . . . . . . . . . . . . . . . . . . . . . . . . . Exploded 4 | . 3 2 . . . . . 4 . . . 3 3 2 . 2 2 3 2 . . . . . . . . . Melee 1 | . . . . . . . . 1 1 1 1 1 1 1 1 1 1 1 1 . . . 1 . 1 1 . . Uniques/NPCs Destroyed . | . . . . . . . . . . . . . . . . . . . . . . . . . . . . . Combat | -11 -10 -10 -9 -9 -9 -8 -8 -8 -7 -7 -7 -7 -6 -6 -5 -5 -5 -5 -4 -4 -4 -4 -4 -3 -3 -2 -1 -1 -------- Run | Yrd Mat Min Mat Min Exi Min Mat Gar Fac Gar Fac Gar Fac Gar Fac Gar Fac Gar Fac Ext Cet Arc Hub Res Gar Res Acc Com Hostile Shots Fired 2270 | . 36 22 65 23 . 7 41 91 42 96 36 51 130 125 107 68 226 61 197 12 13 1 22 7 68 294 199 230 Missed 668 | . 9 4 21 9 . 3 11 26 14 37 18 8 50 32 25 22 54 18 62 1 7 . 8 5 23 100 58 43 Intercepted 14 | . . . . . . . . . . . . . . . . . . . . . . . . . . . . 14 Damage Taken 33840 | . 372 186 511 53 . 57 624 1030 385 816 331 701 1005 1830 1989 881 3411 943 3058 434 247 49 220 142 976 3612 1739 8238 Core 4423 | . 107 44 90 6 . 41 46 143 29 111 5 62 153 153 256 128 419 99 336 133 . 49 . 31 43 324 89 1526 Absorbed by Shields 3790 | . . . 152 56 . 16 52 92 . . . 3 . 21 . 177 409 . 48 . . . . 11 368 1227 887 271 Reduced by Siege Mode 752 | . . . . . . . . . . . . . . . . . . 26 . . . . . . . 61 78 587 Ignored by Resistances 1049 | . . . . . . . . . . . . . 52 . . . . . . . . . . . . . 997 . Regen/Repaired (Parts) 1254 | . . . . . . . 418 . . . 102 . 68 . 218 . 175 . 273 . . . . . . . . . Core Remaining (%) 63 | 100 . 39 . . . 65 . 65 . . . 70 . 64 . . . 9 . . . . 54 . 94 77 . . Volleys Fired 1122 | 11 40 29 76 15 . 11 30 56 28 68 12 19 13 23 72 37 149 48 100 30 18 7 6 3 41 58 71 51 Largest 4 | 2 2 2 2 2 . 2 3 3 2 2 1 2 2 1 2 2 3 2 1 1 3 3 2 1 1 2 4 4 Hottest 212 | 60 85 60 113 88 . 88 132 132 53 56 5 106 106 53 121 66 108 61 98 98 135 135 70 66 66 132 212 200 Shots Fired 1711 | 22 77 33 146 31 . 22 87 121 37 105 12 21 19 23 73 39 171 61 104 30 40 21 9 3 45 82 171 106 Gun 604 | 22 76 8 34 . . . 19 38 33 85 . . . 4 10 6 76 25 . . 26 14 6 . . . 76 46 Cannon 687 | . . 23 111 31 . 22 68 81 . . . 4 18 10 29 . 33 5 50 5 12 7 . 1 7 63 74 33 Launcher 48 | . 1 2 . . . . . 2 . . . 3 1 8 . 6 4 5 4 4 . . . . . . . 8 Special 372 | . . . 1 . . . . . 4 20 12 14 . 1 34 27 58 26 50 21 2 . 3 2 38 19 21 19 Kinetic 1123 | 11 39 27 111 31 . 22 87 119 33 85 . 4 18 14 7 6 83 25 36 . 38 21 6 1 7 63 150 79 Thermal 169 | 11 37 4 35 . . . . . . . . . . . 32 . 26 5 14 5 . . . . . . . . Explosive 48 | . 1 2 . . . . . 2 . . . 3 1 8 . 6 4 5 4 4 . . . . . . . 8 Electromagnetic . | . . . . . . . . . . . . . . . . . . . . . . . . . . . . . Robot Hit Streak 35 | 4 5 4 7 6 . 11 11 11 8 35 8 4 5 4 8 8 12 17 12 16 9 5 2 1 5 9 21 15 Robot Miss Streak 14 | 4 2 3 6 14 . 5 7 10 2 2 1 5 7 8 3 2 3 4 3 1 3 3 1 1 1 5 5 3 Penetration Max 2 | . . 1 1 . . . . . . . . . . . . . 1 1 1 . 1 1 . . . 1 2 1 Secondary Targets . | . . . . . . . . . . . . . . . . . . . . . . . . . . . . . Shots Hit Robots 1510 | 9 47 19 104 24 . 20 67 99 40 92 24 34 45 37 61 38 158 49 120 21 28 27 9 5 36 93 134 70 Core Hits 725 | 4 21 13 93 13 . 28 58 70 13 21 7 17 26 29 23 11 56 23 53 3 10 13 3 1 6 17 39 54 Critical Kills 26 | . . 4 3 . . . . . . . . . . . . . 1 . . . . 1 . . . 1 13 3 Critical Parts Destroyed 41 | . . 7 2 . . . . . . . . . . . . . 2 . . . . . . . . 3 23 4 Critical Strikes 121 | . . 11 6 . . . . . . . 1 3 3 5 2 . 7 2 11 . 1 5 1 2 1 11 40 9 Burn 1 | . . . 1 . . . . . . . . . . . . . . . . . . . . . . . . . Destroy 55 | . . 11 5 . . . . . . . . . . . . . 3 . . . . 3 . . . . 26 7 Blast 18 | . . . . . . . . . . . . . . . . . . . 6 . 1 1 . . 1 3 4 2 Smash 14 | . . . . . . . . . . . . . . . . . . . . . . . . . . 4 10 . Sever 18 | . . . . . . . . . . . 1 3 3 5 2 . 4 . . . . . . . . . . . Impale 15 | . . . . . . . . . . . . . . . . . . 2 5 . . 1 1 2 . 4 . . Melee Attacks 592 | . . . . . . . . 15 20 22 20 58 39 41 27 27 51 23 88 8 1 18 7 11 16 56 44 . Impact 89 | . . . . . . . . 15 . . . . . . . . . . . . . . . . . 30 44 . Slashing 290 | . . . . . . . . . 20 22 20 58 27 41 27 27 48 . . . . . . . . . . . Piercing 201 | . . . . . . . . . . . . . . . . . 3 23 88 8 1 18 7 11 16 26 . . Sneak Attacks 115 | . . . . . . . . . 11 3 9 7 13 1 7 . 9 3 17 . . 11 3 4 1 8 8 . Combat Hostiles 22 | . . . . . . . . . 2 2 1 5 . . . . 4 3 1 . . . 1 . 1 1 1 . Follow-up Attacks . | . . . . . . . . . . . . . . . . . . . . . . . . . . . . . Damage Inflicted 48167 | 162 769 632 1978 261 . 358 1297 1972 1574 1733 1003 2099 1728 2410 1369 1189 5412 1489 4698 116 982 1393 392 293 520 4365 4481 3492 Guns 8935 | 162 607 72 358 . . . 226 540 551 1506 . . . 39 82 35 1980 527 . . 640 267 38 . . . 591 714 Cannons 13028 | . . 378 1620 261 . 358 1071 1105 . . . 74 373 196 491 . 646 28 972 . 306 152 . . 125 1970 2000 902 Explosions 7666 | . 162 182 . . . . . 238 . . . 569 152 1047 . 807 1166 487 987 17 . . . . . . . 1852 Melee 18457 | . . . . . . . . 89 1023 227 1003 1456 1203 1128 796 347 1563 447 2739 99 36 974 354 293 395 2395 1890 . Ramming 81 | . . . . . . . . . . . . . . . . . 57 . . . . . . . . . . 24 Kinetic 19887 | 52 260 415 1620 261 . 358 1297 1645 551 1506 . 74 373 235 62 35 2137 527 774 . 946 419 38 . 125 1970 2591 1616 Thermal 2215 | 110 347 35 358 . . . . . . . . . . . 511 . 628 28 198 . . . . . . . . . Explosive 7527 | . 162 182 . . . . . 238 . . . 569 152 1047 . 807 1027 487 987 17 . . . . . . . 1852 Electromagnetic . | . . . . . . . . . . . . . . . . . . . . . . . . . . . . . Impact 3283 | . . . . . . . . 89 . . . . . . . . . . . . . . . . . 1304 1890 . Slashing 8613 | . . . . . . . . . 1023 227 1003 1456 1203 1128 796 347 1430 . . . . . . . . . . . Piercing 6561 | . . . . . . . . . . . . . . . . . 133 447 2739 99 36 974 354 293 395 1091 . . Highest Corruption 36 | . . . 1 1 1 1 3 5 4 2 4 4 2 4 4 3 22 23 17 9 9 9 3 . 7 36 . 28 Average Corruption 6 | . . . 1 1 1 1 3 4 2 1 3 3 1 2 2 2 10 22 7 7 9 6 3 . 5 14 . 17 Corruption Purged 50 | . . . . . . . . . 4 . . 4 1 5 4 . 4 . 10 . . 6 . . . 12 . . Corruption Blocked 20 | . . . . . . . . . . . . . . . . . . . . . . . . . . . 12 8 Effects 586 | . . . 6 5 2 4 23 34 15 14 24 1 7 7 14 22 83 70 78 26 16 10 5 . 20 89 . 11 Message Errors 136 | . . . 1 1 1 . 6 10 5 3 8 . . 3 6 2 19 11 20 8 4 4 3 . 2 16 . 3 Matter Fused 156 | . . . 1 1 1 . 6 3 5 5 6 1 3 1 3 6 22 21 17 8 3 4 1 . 7 30 . 1 Heat Flow Errors 55 | . . . 1 1 . 1 4 3 1 1 4 . . 1 1 2 9 7 5 4 . 1 . . 3 5 . 1 Energy Discharges 76 | . . . 2 1 . 1 1 8 . 1 3 . 1 1 1 6 11 10 10 5 1 . . . 2 10 . 1 Parts Rejected 8 | . . . . . . . . . . . . . 1 1 . . 2 1 2 . 1 . . . . . . . Parts Fused 5 | . . . . . . . . . . . . . . . . 1 . . 2 . 1 . . . . 1 . . Data Loss (minor) 69 | . . . . . . . 5 4 2 2 2 . . . 1 2 10 10 8 1 4 . 1 . 1 16 . . Data Loss (major) 30 | . . . . . . 2 . 1 . 1 1 . 1 . . 2 2 5 7 . 1 1 . . 1 5 . . Misfires 25 | . . . . 1 . . 1 4 2 . . . 1 . . 1 1 2 5 . 1 . . . 4 2 . . Alerts 11 | . . . . . . . . . . 1 . . . . 2 . 2 1 1 . . . . . . 2 . 2 Misdirections 8 | . . . . . . . . . . . . . . . . . 4 1 . . . . . . . 1 . 2 Weapon Failures 7 | . . . 1 . . . . 1 . . . . . . . . 1 1 1 . . . . . . 1 . 1 Overload Shots . | . . . . . . . . . . . . . . . . . . . . . . . . . . . . . Overflow Damage 4196 | . . 41 . 1 . 2 . 54 329 39 240 194 228 185 79 140 178 3 319 . . 163 . 250 . 773 962 16 Projectiles 443 | . . 18 . 1 . 2 . 6 . . . . 4 . . . 17 3 29 . . . . . . 243 120 . Explosions 217 | . . 23 . . . . . 48 . . . 14 2 30 . 62 22 . . . . . . . . . . 16 Melee 3536 | . . . . . . . . . 329 39 240 180 222 155 79 78 139 . 290 . . 163 . 250 . 530 842 . Knockbacks 177 | . . 5 18 15 . 11 16 31 . . . 1 2 5 . . 4 . 10 . . . . . 4 27 20 8 Impact 10 | . . . . . . . . . . . . . . . . . . . . . . . . . . 4 6 . Kinetic 159 | . . 3 18 15 . 10 16 31 . . . 1 2 5 . . 3 . 9 . . . . . 3 22 13 8 Secondary 8 | . . 2 . . . 1 . . . . . . . . . . 1 . 1 . . . . . 1 1 1 . Self-Inflicted Damage 427 | . . . . . . . . . . . . . . . . 80 . . . 18 . . . . . . . 329 Shots 10 | . . . . . . . . . . . . . . . . 3 . . . 1 . . . . . . . 6 Rammed 7 | . . . . . . . . . . . . . . . . . 5 . . . . . . . . . . 2 Targets Rammed 7 | . . . . . . . . . . . . . . . . . 5 . . . . . . . . . . 2 Kicked . | . . . . . . . . . . . . . . . . . . . . . . . . . . . . . Crushed . | . . . . . . . . . . . . . . . . . . . . . . . . . . . . . Highest Temperature 400 | . 277 218 334 178 . 174 304 234 283 102 227 60 54 283 312 128 291 276 278 251 148 99 . . 173 331 370 400 Average Temperature 90 | . 110 81 76 44 . 66 89 88 113 9 94 28 22 109 92 69 116 77 50 104 61 41 . . 55 138 107 130 Received Heat Transfer 3403 | . 216 84 171 . . 69 172 212 51 270 87 208 171 96 234 78 185 108 385 18 18 . . 9 13 42 209 297 Effects 13 | . . . 1 . . . 1 3 . . . . . . . . . . . . . . . . . 5 1 2 Shutdowns 2 | . . . . . . . . . . . . . . . . . . . . . . . . . . . . 2 Energy Bleed 2 | . . . . . . . 1 . . . . . . . . . . . . . . . . . . . 1 . Interference 8 | . . . . . . . . 3 . . . . . . . . . . . . . . . . . 5 . . Damage (minor) 1 | . . . 1 . . . . . . . . . . . . . . . . . . . . . . . . . Siege Activations 12 | . . . . . . . . . . . . . . . . . . 1 . . . . . . . 2 5 4 Total Turns 264 | . . . . . . . . . . . . . . . . . . 41 . . . . . . . 41 88 94 Longest Duration 52 | . . . . . . . . . . . . . . . . . . 41 . . . . . . . 32 39 52 Robots Corrupted 10 | . . . . . . . . . . . . . . . . . . . . . . . . . . 1 9 . Combat Hostiles 6 | . . . . . . . . . . . . . . . . . . . . . . . . . . . 6 . Parts Fried 20 | . . . . . . . . . . . . . . . 2 . 4 . . . . . . . . 1 13 . Impact Corruptions 34 | . . . . . . . . . . . . . . . . . . . . . . . . . . 14 20 . Robots Melted . | . . . . . . . . . . . . . . . . . . . . . . . . . . . . . Combat Hostiles . | . . . . . . . . . . . . . . . . . . . . . . . . . . . . . Parts Melted 9 | . 3 . . . . . . . . . . . . . . . 3 . 3 . . . . . . . . . Heat Transferred 3885 | 250 795 75 962 . . . . . . . . . . . 737 . 729 37 300 . . . . . . . . . Parts Sabotaged . | . . . . . . . . . . . . . . . . . . . . . . . . . . . . . Parts Stolen . | . . . . . . . . . . . . . . . . . . . . . . . . . . . . . Parts Stripped . | . . . . . . . . . . . . . . . . . . . . . . . . . . . . . Power Chain Reactions . | . . . . . . . . . . . . . . . . . . . . . . . . . . . . . Alert | -11 -10 -10 -9 -9 -9 -8 -8 -8 -7 -7 -7 -7 -6 -6 -5 -5 -5 -5 -4 -4 -4 -4 -4 -3 -3 -2 -1 -1 ------- Run | Yrd Mat Min Mat Min Exi Min Mat Gar Fac Gar Fac Gar Fac Gar Fac Gar Fac Gar Fac Ext Cet Arc Hub Res Gar Res Acc Com Peak Influence 1589 | 15 276 304 633 199 . 115 198 951 523 964 587 1157 608 737 367 1589 851 1051 654 331 278 265 288 174 1485 845 773 1105 Initial 833 | . 9 45 97 164 . . 44 78 499 76 506 137 606 59 333 11 833 276 551 . 1 31 92 39 20 823 264 494 Average 369 | 6 117 160 269 45 . 44 56 605 273 512 349 740 222 426 160 896 513 657 367 106 120 227 126 83 649 311 400 792 Maximum Alert Level 4 | . 1 1 2 . . . . 3 2 3 2 4 2 3 1 4 3 3 2 1 1 1 1 . 4 3 3 4 Low Security (%) 35 | 100 94 70 44 100 . 100 100 6 30 12 26 3 54 15 61 10 4 . 28 73 87 21 75 100 31 17 11 . Level 1 27 | . 5 29 30 . . . . 17 49 21 31 5 26 30 38 17 29 11 12 26 12 78 24 . 14 69 58 . Level 2 23 | . . . 24 . . . . 30 20 33 42 32 19 52 . 13 51 56 59 . . . . . 3 5 15 30 Level 3 10 | . . . . . . . . 46 . 32 . 48 . 1 . 7 14 31 . . . . . . 27 7 14 69 Level 4 2 | . . . . . . . . . . . . 9 . . . 52 . . . . . . . . 23 . . . Level 5 . | . . . . . . . . . . . . . . . . . . . . . . . . . . . . . High Security . | . . . . . . . . . . . . . . . . . . . . . . . . . . . . . Max Security . | . . . . . . . . . . . . . . . . . . . . . . . . . . . . . Squads Dispatched 101 | . . . 7 . . . 9 . 3 . 6 . 5 . 9 . 21 . 15 . . . 5 2 . 7 8 4 Investigation 31 | . . . 6 . . . 5 . 1 . 1 . 1 . 3 . 3 . 5 . . . 2 1 . 2 . 1 Extermination 27 | . . . . . . . . . 2 . 2 . 1 . 2 . 5 . 5 . . . 1 . . 5 3 1 Reinforcement 26 | . . . 1 . . . 2 . . . 2 . 3 . 3 . 7 . 1 . . . 2 1 . . 3 1 Assault 3 | . . . . . . . . . . . . . . . . . . . 1 . . . . . . . 1 1 Garrison 14 | . . . . . . . 2 . . . 1 . . . 1 . 6 . 3 . . . . . . . 1 . Intercept . | . . . . . . . . . . . . . . . . . . . . . . . . . . . . . Searches Triggered . | . . . . . . . . . . . . . . . . . . . . . . . . . . . . . Construction Impeded 3 | . . . . . . . . . . . . . . . . . 2 . . . . . . . . . 1 . Haulers Reinforced 7 | . . . . . . . . . . . . . . . 1 . 4 . . . . . 1 . . . 1 . Active Scanning Responses . | . . . . . . . . . . . . . . . . . . . . . . . . . . . . . Cargo Convoy Interrupts 1 | . . . . . . . . . . . . . . . 1 . . . . . . . . . . . . . Stealth | -11 -10 -10 -9 -9 -9 -8 -8 -8 -7 -7 -7 -7 -6 -6 -5 -5 -5 -5 -4 -4 -4 -4 -4 -3 -3 -2 -1 -1 --------- Run | Yrd Mat Min Mat Min Exi Min Mat Gar Fac Gar Fac Gar Fac Gar Fac Gar Fac Gar Fac Ext Cet Arc Hub Res Gar Res Acc Com Distress Signals 27 | . 1 2 3 . . . 4 . . . 4 . . . . . 2 . . . . . 1 4 . . 5 1 Communications Jammed 1030 | . . . . . . . . . . . . . 10 . 126 . 133 . 60 . 513 . 1 96 . 67 . 24 Distress Signals 1030 | . . . . . . . . . . . . . 10 . 126 . 133 . 60 . 513 . 1 96 . 67 . 24 Times Spotted 717 | . 14 13 38 3 . 3 15 22 12 21 30 28 26 20 41 34 76 27 66 10 11 9 8 13 38 44 58 37 Peak Tracking Total 8 | . 5 3 4 3 . 2 4 3 3 4 6 4 5 4 6 6 8 3 7 2 5 3 5 3 7 6 8 8 Tactical Retreats 46 | . 1 1 5 1 . . . . 2 . 2 3 3 3 4 1 2 . 3 . . . . . 1 4 6 4 Traps | -11 -10 -10 -9 -9 -9 -8 -8 -8 -7 -7 -7 -7 -6 -6 -5 -5 -5 -5 -4 -4 -4 -4 -4 -3 -3 -2 -1 -1 ------- Run | Yrd Mat Min Mat Min Exi Min Mat Gar Fac Gar Fac Gar Fac Gar Fac Gar Fac Gar Fac Ext Cet Arc Hub Res Gar Res Acc Com Traps Triggered 65 | . 1 . 2 . . . . 2 3 8 2 2 1 5 4 10 3 2 2 6 . . . 3 3 3 1 2 Indirectly . | . . . . . . . . . . . . . . . . . . . . . . . . . . . . . Trap Hack Attempts . | . . . . . . . . . . . . . . . . . . . . . . . . . . . . . Triggered . | . . . . . . . . . . . . . . . . . . . . . . . . . . . . . Disarmed . | . . . . . . . . . . . . . . . . . . . . . . . . . . . . . Reprogrammed 8 | . . . . . . . . . . . . . . . . . . . . . . . 2 . . 6 . . Reused 41 | . . 1 1 . . . 1 4 3 . . . 4 1 6 . 8 2 9 . . . . . . 1 . . Traps Reconfigurated 108 | . . . . . . . 10 23 14 2 9 . 9 . 16 . 10 2 12 . . . . . . 1 . . Traps Extracted . | . . . . . . . . . . . . . . . . . . . . . . . . . . . . . Installed 6 | . . 1 1 . . . . 1 . . . . 2 1 . . . . . . . . . . . . . . Triggered 46 | . . 1 1 . . . 1 3 3 . . . 4 1 11 . 8 2 9 . . . . . . 2 . . Most Traps Carried 4 | . . 4 3 2 2 . . 4 3 3 3 3 3 1 . . . . . . . . . . . . . . Machines | -11 -10 -10 -9 -9 -9 -8 -8 -8 -7 -7 -7 -7 -6 -6 -5 -5 -5 -5 -4 -4 -4 -4 -4 -3 -3 -2 -1 -1 ---------- Run | Yrd Mat Min Mat Min Exi Min Mat Gar Fac Gar Fac Gar Fac Gar Fac Gar Fac Gar Fac Ext Cet Arc Hub Res Gar Res Acc Com Machines Disabled 54 | . . . 1 . . . . 4 . 5 . 8 . 6 2 3 7 5 3 . . 2 1 . 5 1 . 1 Max in Single Turn 2 | . . . 1 . . . . 1 . 1 . 1 . 2 1 1 2 1 1 . . 1 . . 1 1 . 1 Garrison Access 12 | . . . . . . . . . 1 . 1 . 2 . 1 . 2 . 1 . . . . . . 2 2 . Garrison Relay 26 | . . . . . . . . 3 . 5 . 4 . 3 . 4 . 4 . . . . . . 3 . . . Network Hub 2 | . . . . . . . . . . . . . . . . . . . . . . . 2 . . . . . Machines Repaired . | . . . . . . . . . . . . . . . . . . . . . . . . . . . . . Machines Dismantled . | . . . . . . . . . . . . . . . . . . . . . . . . . . . . . Machines Sabotaged 2 | . . . . . . . . . . . . . . . . . . . . . . . 2 . . . . . Overloaded Fab Kills . | . . . . . . . . . . . . . . . . . . . . . . . . . . . . . Hacking | -11 -10 -10 -9 -9 -9 -8 -8 -8 -7 -7 -7 -7 -6 -6 -5 -5 -5 -5 -4 -4 -4 -4 -4 -3 -3 -2 -1 -1 --------- Run | Yrd Mat Min Mat Min Exi Min Mat Gar Fac Gar Fac Gar Fac Gar Fac Gar Fac Gar Fac Ext Cet Arc Hub Res Gar Res Acc Com Machines Accessed 188 | . 8 . 9 1 1 . 14 4 10 2 12 2 11 2 16 4 15 3 17 15 3 . 6 4 3 13 11 2 Terminals 140 | . 8 . 7 1 . . 9 4 6 2 9 2 7 2 9 4 7 3 9 15 3 . 6 3 3 10 9 2 Fabricators 10 | . . . . . . . . . 1 . . . . . 1 . 3 . 4 . . . . . . 1 . . Repair Stations 10 | . . . . . . . 2 . . . 1 . 1 . 3 . 2 . 1 . . . . . . . . . Recycling Units 6 | . . . 2 . . . 2 . 1 . . . . . 1 . . . . . . . . . . . . . Scanalyzers . | . . . . . . . . . . . . . . . . . . . . . . . . . . . . . Garrison Access 21 | . . . . . . . 1 . 2 . 2 . 3 . 2 . 3 . 3 . . . . 1 . 2 2 . Total Hacks 623 | . 25 . 36 3 1 . 45 9 24 6 32 9 41 5 47 11 36 6 48 26 10 . 32 52 16 65 30 8 Successful 313 | . 10 . 19 1 1 . 25 2 12 2 15 3 21 2 26 4 24 2 26 17 5 . 23 28 3 27 13 2 Failed 309 | . 15 . 17 2 . . 20 7 12 4 17 6 20 3 21 7 12 4 22 9 5 . 9 23 13 38 17 6 Catastrophic 51 | . 1 . 1 . . . 2 4 . 2 4 1 5 . 4 1 . . 2 . . . . 4 2 10 4 4 Database Lockouts 1 | . . . . . . . . . . . . . . . . . . . . . . . . 1 . . . . Manual 313 | . 16 . 30 3 1 . 31 2 17 2 17 2 20 2 33 4 9 . 24 9 1 . 17 16 6 38 6 7 Terminals 524 | . 25 . 34 3 . . 36 9 19 6 27 9 32 5 32 11 19 6 24 26 10 . 32 51 16 58 26 8 Fabricators 27 | . . . . . . . . . 1 . . . . . 2 . 6 . 15 . . . . . . 3 . . Repair Stations 25 | . . . . . . . 5 . . . 2 . 4 . 6 . 6 . 2 . . . . . . . . . Recycling Units 10 | . . . 2 . . . 3 . 1 . . . . . 4 . . . . . . . . . . . . . Scanalyzers . | . . . . . . . . . . . . . . . . . . . . . . . . . . . . . Garrison Access 36 | . . . . . . . 1 . 3 . 3 . 5 . 3 . 5 . 7 . . . . 1 . 4 4 . Terminal Hacks 165 | . 7 . 11 1 1 . 11 2 4 2 5 2 7 2 9 3 7 2 9 14 5 . 14 23 2 14 7 1 Record 13 | . . . . . . . . . . . 1 . . . . . . . . . 4 . . 7 . 1 . . Part Schematic 1 | . . . . . . . . . . . . . 1 . . . . . . . . . . . . . . . Robot Analysis 13 | . 2 . 3 . . . . . 1 . . . 1 . 2 . . . . . . . . 3 . 1 . . Prototype ID Bank 19 | . 4 . 1 . . . 3 . . . 2 . 1 . . . 1 . . . . . 2 2 . 3 . . Open Door 19 | . . . . . . . . . . 1 . . . . . 1 . 1 1 10 1 . . . 1 . 3 . Level Access Points 2 | . . . . . . . . . . . . . . . . . . . . . . . 1 . . 1 . . Branch Access Points 3 | . . . 1 . . . . . . . . . . . . . . . 1 . . . . . . . 1 . Emergency Access Points 9 | . . . 1 . . . 1 . . 1 . 1 . 1 . 1 . 1 . . . . . 1 1 . . . Terminal Index 13 | . 1 . 1 . . . 1 . 1 . 1 . 1 . 1 . 1 . . 1 . . 1 1 . 1 1 . Repair Station Index 1 | . . . . . . . . . . . . . . . . . . . . . . . . 1 . . . . Scanalyzer Index 1 | . . . . . . . . . . . . . . . . . . . . . . . . 1 . . . . Garrison Index 6 | . . . . . . . 1 . . . . . 1 . 1 . 1 . . . . . 1 1 . . . . Alert Level 2 | . . . 1 . . . 1 . . . . . . . . . . . . . . . . . . . . . Unreport Threat 24 | . . . 2 1 . . 1 . 1 . 1 . 2 . 2 . 3 . 3 2 . . 2 . . 3 1 . Locate Traps 7 | . . . . . . . 2 . . . . . . . 1 . . . 1 . . . . . . 2 . 1 Reprogram Traps 2 | . . . . . . . . . . . . . . . . . . . . . . . 1 . . 1 . . Maintenance Status 1 | . . . . . . . . . . . . . . . . . . . 1 . . . . . . . . . Security Status 2 | . . . . . . . . . . . . . . . . . . . . . . . 1 1 . . . . Surveillance Status 2 | . . . . . . . . . . . . . . . . . . . 1 . . . . 1 . . . . Patrol Status 1 | . . . . . . . . . . . . . . . . . . . . . . . 1 . . . . . Recall Investigation 2 | . . . . . . . . . . . . . . . 1 . . . 1 . . . . . . . . . Recall Reinforcements 1 | . . . . . . . . . . . . . . . . . . . . . . . 1 . . . . . Hauler Manifests 9 | . . . 1 . . . 1 . 1 . . . . . 1 . 1 . . . . . 1 1 . 1 1 . Registered Components 1 | . . . . . . . . . . . . . . . . . . . . . . . . 1 . . . . Registered Prototypes 2 | . . . . . . . . . . . . . . . . . . . . . . . 1 1 . . . . Zone Layout 3 | . . . . . . . . . . . . . . . . . . . . 1 . . 1 1 . . . . Garrison Registry 2 | . . . . . . . . 1 . . . . . . . 1 . . . . . . . . . . . . Security Stations 3 | . . . . . . . . 1 . . . 1 . 1 . . . . . . . . . . . . . . Derelict Proto ID Bank 1 | . . . . . 1 . . . . . . . . . . . . . . . . . . . . . . . Fabricator Hacks 11 | . . . . . . . . . . . . . . . 2 . 4 . 4 . . . . . . 1 . . Network Status 4 | . . . . . . . . . . . . . . . . . 2 . 1 . . . . . . 1 . . Load Schematic 4 | . . . . . . . . . . . . . . . 1 . 1 . 2 . . . . . . . . . Build 3 | . . . . . . . . . . . . . . . 1 . 1 . 1 . . . . . . . . . Repair Station Hacks 17 | . . . . . . . 4 . . . 2 . 2 . 4 . 4 . 1 . . . . . . . . . Scan Component 9 | . . . . . . . 2 . . . 1 . 1 . 2 . 2 . 1 . . . . . . . . . Repair 8 | . . . . . . . 2 . . . 1 . 1 . 2 . 2 . . . . . . . . . . . Recycling Unit Hacks . | . . . . . . . . . . . . . . . . . . . . . . . . . . . . . Scanalyzer . | . . . . . . . . . . . . . . . . . . . . . . . . . . . . . Garrison Access Hacks 33 | . . . . . . . 1 . 3 . 3 . 5 . 3 . 5 . 4 . . . . 1 . 4 4 . Unlock Access 7 | . . . . . . . 1 . 1 . 1 . 1 . 1 . 1 . . . . . . 1 . . . . Seal Access 12 | . . . . . . . . . 1 . 1 . 2 . 1 . 2 . 1 . . . . . . 2 2 . Coupler Status 14 | . . . . . . . . . 1 . 1 . 2 . 1 . 2 . 3 . . . . . . 2 2 . Unauthorized Hacks 87 | . 3 . 8 . . . 9 . 5 . 5 1 7 . 8 1 4 . 8 3 . . 9 4 1 8 2 1 Terminals 71 | . 3 . 6 . . . 7 . 3 . 5 1 7 . 5 1 3 . 3 3 . . 9 4 1 7 2 1 Track 8 | . . . 2 . . . 3 . . . . . 1 . . . . . . . . . 1 . . 1 . . Assimilate 4 | . . . . . . . . . . . 1 . . . 1 . . . 1 . . . 1 . . . . . Botnet 49 | . 3 . 4 . . . 3 . 3 . 4 1 4 . 2 1 3 . 2 3 . . 5 3 1 4 2 1 Disrupt 4 | . . . . . . . 1 . . . . . . . 2 . . . . . . . . . . 1 . . Operators 4 | . . . . . . . . . . . . . 2 . . . . . . . . . . 1 . 1 . . Sabotage 2 | . . . . . . . . . . . . . . . . . . . . . . . 2 . . . . . Fabricators 6 | . . . . . . . . . 1 . . . . . . . 1 . 3 . . . . . . 1 . . Report 4 | . . . . . . . . . 1 . . . . . . . 1 . 1 . . . . . . 1 . . Prioritize 2 | . . . . . . . . . . . . . . . . . . . 2 . . . . . . . . . Repair Stations . | . . . . . . . . . . . . . . . . . . . . . . . . . . . . . Recycling Units 8 | . . . 2 . . . 2 . 1 . . . . . 3 . . . . . . . . . . . . . Reject 1 | . . . . . . . . . . . . . . . 1 . . . . . . . . . . . . . Recyclers 1 | . . . . . . . . . . . . . . . 1 . . . . . . . . . . . . . Mask 1 | . . . . . . . . . . . . . . . 1 . . . . . . . . . . . . . Tunnel 5 | . . . 2 . . . 2 . 1 . . . . . . . . . . . . . . . . . . . Scanalyzers . | . . . . . . . . . . . . . . . . . . . . . . . . . . . . . Garrison Access 2 | . . . . . . . . . . . . . . . . . . . 2 . . . . . . . . . Eject 2 | . . . . . . . . . . . . . . . . . . . 2 . . . . . . . . . Data Cores Recovered 2 | . 1 . . . . . . . . . 1 . . . . . . . . . . . . . . . . . Used 2 | . 1 . . . . . . . . . 1 . . . . . . . . . . . . . . . . . Hacking Detections 151 | . 8 . 7 1 . . 10 4 8 2 9 2 8 2 13 3 14 3 16 9 2 . 4 3 2 11 8 2 Full Trace Events 25 | . 1 . 3 . . . 2 2 . 1 1 . 1 . 2 1 3 1 3 . . . . . 1 2 . 1 Feedback Events . | . . . . . . . . . . . . . . . . . . . . . . . . . . . . . Feedback Blocked . | . . . . . . . . . . . . . . . . . . . . . . . . . . . . . Robot Schematics Acquired . | . . . . . . . . . . . . . . . . . . . . . . . . . . . . . Robots Built . | . . . . . . . . . . . . . . . . . . . . . . . . . . . . . Authchips . | . . . . . . . . . . . . . . . . . . . . . . . . . . . . . Time . | . . . . . . . . . . . . . . . . . . . . . . . . . . . . . Total Robot Build Rating . | . . . . . . . . . . . . . . . . . . . . . . . . . . . . . Part Schematics Acquired 1 | . . . . . . . . . . . . . 1 . . . . . . . . . . . . . . . Parts Built 2 | . . . . . . . . . . . . . . . 1 . . . 1 . . . . . . . . . Authchips . | . . . . . . . . . . . . . . . . . . . . . . . . . . . . . Time 373 | . . . . . . . . . . . . . . . 93 . 187 . 93 . . . . . . . . . Total Part Build Rating 14 | . . . . . . . . . . . . . . . 7 . . . 7 . . . . . . . . . Parts Repaired 8 | . . . . . . . 2 . . . 1 . 1 . 2 . 2 . . . . . . . . . . . Time 332 | . . . . . . . 64 . . . 44 . 44 . 106 . 74 . . . . . . . . . . . Parts Recycled . | . . . . . . . . . . . . . . . . . . . . . . . . . . . . . Recycled Matter . | . . . . . . . . . . . . . . . . . . . . . . . . . . . . . Retrieved Matter . | . . . . . . . . . . . . . . . . . . . . . . . . . . . . . Retrieved Components . | . . . . . . . . . . . . . . . . . . . . . . . . . . . . . Parts Scanalyzed . | . . . . . . . . . . . . . . . . . . . . . . . . . . . . . Part Schematics Acquired . | . . . . . . . . . . . . . . . . . . . . . . . . . . . . . Parts Damaged . | . . . . . . . . . . . . . . . . . . . . . . . . . . . . . Bothacking | -11 -10 -10 -9 -9 -9 -8 -8 -8 -7 -7 -7 -7 -6 -6 -5 -5 -5 -5 -4 -4 -4 -4 -4 -3 -3 -2 -1 -1 ------------ Run | Yrd Mat Min Mat Min Exi Min Mat Gar Fac Gar Fac Gar Fac Gar Fac Gar Fac Gar Fac Ext Cet Arc Hub Res Gar Res Acc Com Used RIF Installer 7 | . . . . . . . . 1 . 1 . 1 . 1 . 1 . 1 . . . . . . 1 . . . Coupler Efficiency 1 | . . . . . . . . . . . . 1 . . . . . . . . . . . . . . . . Hotswap 1 | . . . . . . . . . . . . . . . . . . . . . . . . . 1 . . . Signal Jammer 1 | . . . . . . . . . . 1 . . . . . . . . . . . . . . . . . . Watcher Feeds 1 | . . . . . . . . . . . . . . 1 . . . . . . . . . . . . . . Structural Interface 1 | . . . . . . . . . . . . . . . . 1 . . . . . . . . . . . . Program Shield 1 | . . . . . . . . . . . . . . . . . . 1 . . . . . . . . . . Robots Hacked 190 | . . . . . . . . . 2 9 7 6 8 . 19 12 31 17 24 5 2 . 2 1 13 14 14 4 Non-combat 38 | . . . . . . . . . . . 2 . 3 . 5 . 9 . 8 1 . . . . . 7 3 . Combat 152 | . . . . . . . . . 2 9 5 6 5 . 14 12 22 17 16 4 2 . 2 1 13 7 11 4 Robot Hacks Applied 214 | . . . . . . . . . 2 9 9 8 8 . 23 12 36 18 29 5 2 . 2 1 15 14 16 5 parse_system 17 | . . . . . . . . . . . . 2 . . 2 . 2 1 3 1 2 . . 1 3 . . . no_distress 7 | . . . . . . . . . . . . . . . . . . . . . . . . . . 4 3 . deconstruct_machine 1 | . . . . . . . . . . . . . . . 1 . . . . . . . . . . . . . drop_inventory 9 | . . . . . . . . . . . . . . . 2 . 4 . 2 . . . . . . 1 . . ignore_parts 2 | . . . . . . . . . . . . . . . . . 1 . . . . . . . . 1 . . find_station 2 | . . . . . . . . . . . . . 1 . . . 1 . . . . . . . . . . . purge_threat 10 | . . . . . . . . . . . 2 . . . . . 4 . 4 . . . . . . . . . block_reporting 6 | . . . . . . . . . . . 1 . 1 . . . 2 . 1 1 . . . . . . . . map_route 5 | . . . . . . . . . . . . . 1 . 1 . 1 . 1 . . . . . . 1 . . mark_security 1 | . . . . . . . . . . . 1 . . . . . . . . . . . . . . . . . find_shortcuts 1 | . . . . . . . . . . . . . . . . . . . . . . . . . . . . 1 reboot_propulsion 1 | . . . . . . . . . . . . . . . 1 . . . . . . . . . . . . . scatter_targeting 6 | . . . . . . . . . . . . . . . . . . . 1 2 . . . . . . 2 1 spike_heat 3 | . . . . . . . . . . 1 . . 1 . . . . . . . . . . . 1 . . . overload_power 3 | . . . . . . . . . . . 1 . . . 1 . 1 . . . . . . . . . . . amplify_resonance 21 | . . . . . . . . . . 3 . . . . . . 4 5 2 . . . . . 1 2 3 1 wipe_record 2 | . . . . . . . . . . . . . 1 . 1 . . . . . . . . . . . . . disable_weapons 1 | . . . . . . . . . . . . . . . . . . . . . . . . . 1 . . . reboot_system 8 | . . . . . . . . . . . 1 . . . 1 . 1 4 . . . . . . 1 . . . overwrite_iff 44 | . . . . . . . . . 2 2 . 3 . . 5 3 10 . 7 . . . 2 . 5 . 5 . streamctrl_high 1 | . . . . . . . . . . . . . 1 . . . . . . . . . . . . . . . formatsys_low 1 | . . . . . . . . . . . . . . . . . . . 1 . . . . . . . . . formatsys_high 62 | . . . . . . . . . . 3 3 3 2 . 8 9 5 8 7 1 . . . . 3 5 3 2 Relay Couplers Released 118 | . . . . . . . . 11 . 23 . 16 . 15 1 17 3 14 7 . . . . . 11 . . . Ejected 7 | . . . . . . . . . . . . . . . . . . . 7 . . . . . . . . . Machine Destruction 100 | . . . . . . . . 11 . 19 . 16 . 11 1 17 . 14 . . . . . . 11 . . . Programmers 11 | . . . . . . . . . . 4 . . . 4 . . 3 . . . . . . . . . . . Attached 75 | . . . . . . . . 1 1 4 3 6 2 2 3 9 7 9 7 1 . . . 1 12 3 2 2 Fabnet Peak Effective % . | . . . . . . . . . . . . . . . . . . . . . . . . . . . . . Robots Rewired 32 | . . . . . . . . 3 . 3 . . . 1 . 7 . . . 6 . . . . 12 . . . Allies Hacked 12 | . . . . . . . . . 1 1 . . . . 1 1 1 . 1 4 . . . . 1 1 . . Hacks Repelled . | . . . . . . . . . . . . . . . . . . . . . . . . . . . . . Allies | -11 -10 -10 -9 -9 -9 -8 -8 -8 -7 -7 -7 -7 -6 -6 -5 -5 -5 -5 -4 -4 -4 -4 -4 -3 -3 -2 -1 -1 -------- Run | Yrd Mat Min Mat Min Exi Min Mat Gar Fac Gar Fac Gar Fac Gar Fac Gar Fac Gar Fac Ext Cet Arc Hub Res Gar Res Acc Com Total Allies 174 | . . 3 . . . . . 3 2 8 4 6 3 3 13 21 15 9 16 22 5 . 2 3 22 5 7 2 Largest Group 15 | . . 3 1 . . . . 3 3 3 4 3 1 3 2 15 9 4 4 12 13 12 6 3 12 2 1 3 Highest-Rated Group 872 | . . 40 13 . . . . 82 82 89 99 170 32 187 98 826 545 136 191 564 872 833 500 138 643 128 178 316 Highest-Rated Ally 178 | . . 16 13 . . . . 31 31 32 32 85 32 95 49 148 148 49 137 159 159 153 96 46 116 64 178 178 Total Orders 3 | . . . . . . . . . . . . . . . . . 1 . 2 . . . . . . . . . STAY 1 | . . . . . . . . . . . . . . . . . 1 . . . . . . . . . . . FOLLOW 1 | . . . . . . . . . . . . . . . . . . . 1 . . . . . . . . . AID 1 | . . . . . . . . . . . . . . . . . . . 1 . . . . . . . . . Ally Attacks 980 | . . 28 9 . . . . . 12 43 83 32 10 11 34 103 49 47 42 95 62 25 25 . 191 16 20 43 Total Damage 30126 | . . 285 121 . . . . . 139 1470 1392 1643 479 437 972 3161 1438 828 1305 2392 2057 1158 775 . 6478 671 878 2047 Kills 181 | . . 3 1 . . . . . . 9 14 14 1 2 7 26 10 4 6 14 6 4 4 . 38 2 6 10 Allies Corrupted 13 | . . . . . . . . . . . . . . . 1 . . . . 1 . . 2 . 2 4 2 1 Allies Melted 3 | . . . . . . . . . . . . 1 . . . 1 . . . . . . . . . 1 . . Intel | -11 -10 -10 -9 -9 -9 -8 -8 -8 -7 -7 -7 -7 -6 -6 -5 -5 -5 -5 -4 -4 -4 -4 -4 -3 -3 -2 -1 -1 ------- Run | Yrd Mat Min Mat Min Exi Min Mat Gar Fac Gar Fac Gar Fac Gar Fac Gar Fac Gar Fac Ext Cet Arc Hub Res Gar Res Acc Com Robot Analysis Total 13 | . 2 . 3 . . . . . 1 . . . 1 . 2 . . . . . . . . 3 . 1 . . Derelict Logs Recovered 5 | . . 2 . 3 . . . . . . . . . . . . . . . . . . . . . . . . Drone Launches . | . . . . . . . . . . . . . . . . . . . . . . . . . . . . . Drone Recoveries . | . . . . . . . . . . . . . . . . . . . . . . . . . . . . . Exploration | -11 -10 -10 -9 -9 -9 -8 -8 -8 -7 -7 -7 -7 -6 -6 -5 -5 -5 -5 -4 -4 -4 -4 -4 -3 -3 -2 -1 -1 ------------- Run | Yrd Mat Min Mat Min Exi Min Mat Gar Fac Gar Fac Gar Fac Gar Fac Gar Fac Gar Fac Ext Cet Arc Hub Res Gar Res Acc Com Turns Passed 35671 | 112 538 491 1364 658 301 313 1672 1182 1928 1484 1363 1160 2041 1194 2507 1397 2867 1437 2853 887 456 375 295 730 835 2717 1824 690 Spaces Moved 22077 | 58 418 421 937 543 309 234 1117 662 1319 982 984 784 1404 664 1424 837 1548 742 1788 508 246 197 212 517 576 1345 846 455 Core 163 | 1 . . . . . . . . . . . . . . . . . . . . . . . . . . . 162 Treads 3186 | . . . . . . . . . 51 . . . . 5 238 . 190 742 4 . . . . . . 879 846 231 Legs 1348 | . . . . . . . . . . . . . . . . . . . . . . . . 304 576 466 . 2 Wheels 17380 | 57 418 421 937 543 309 234 1117 662 1268 982 984 784 1404 659 1186 837 1358 . 1784 508 246 197 212 213 . . . 60 Hover . | . . . . . . . . . . . . . . . . . . . . . . . . . . . . . Flight . | . . . . . . . . . . . . . . . . . . . . . . . . . . . . . Fastest Speed 50 | 50 80 90 86 110 95 95 110 120 115 115 105 115 100 115 116 123 116 160 107 108 115 115 115 110 113 115 150 50 Average Speed 123 | 95 88 90 101 110 95 109 120 123 125 115 110 115 114 135 136 131 131 160 115 126 130 120 115 113 113 159 150 108 Slowest Speed 570 | 100 95 90 110 110 95 110 140 185 246 115 130 115 130 245 570 145 245 160 225 146 131 131 131 180 115 186 150 170 Overloaded Moves . | . . . . . . . . . . . . . . . . . . . . . . . . . . . . . Propulsion Burnouts . | . . . . . . . . . . . . . . . . . . . . . . . . . . . . . Robots Hopped . | . . . . . . . . . . . . . . . . . . . . . . . . . . . . . Cave-ins Triggered 1 | . . . . . . . . . . . . . . . . . . . 1 . . . . . . . . . Exploration Rate (%) 61 | 5 90 91 70 99 71 65 86 74 30 90 36 86 39 69 40 88 45 90 57 71 82 94 39 30 65 51 18 21 Regions Visited 28 Branch Regions 9 Pre-discovered Areas 7 | . . 2 2 . . . 2 . 1 . . . . . . . . . . . . . . . . . . . Known Exits Taken 13 | . . . 1 . . 1 1 . 1 . 1 . 1 . 1 . 1 . 1 . . . 1 1 . 1 1 . Unknown Exits Taken 8 | 1 1 1 . 1 1 . . . . . . . . . . . . . . 1 1 1 . . . . . . Scrap Searched 3 | . . 1 . 1 . 1 . . . . . . . . . . . . . . . . . . . . . . Spaces Dug 242 | . . . 1 . . . . 1 6 . 2 1 7 1 15 . 45 . 27 100 . . 6 8 . 9 13 . Terrain Destroyed 834 | . 8 20 20 . . . . 5 6 . 2 44 14 89 21 90 125 35 73 100 7 7 7 8 4 35 38 76 Melee 77 | . . . . . . . . 1 6 . 2 1 7 1 8 . 6 . 19 1 . . 2 6 . 4 13 . Projectile 231 | . . 10 20 . . . . . . . . . . . 13 1 59 1 27 4 7 7 5 2 4 31 24 16 AOE 523 | . 8 9 . . . . . 4 . . . 43 7 88 . 89 60 34 27 95 . . . . . . . 59 Terrain Rammed . | . . . . . . . . . . . . . . . . . . . . . . . . . . . . . Walls Destroyed . | . . . . . . . . . . . . . . . . . . . . . . . . . . . . . Machines Disabled . | . . . . . . . . . . . . . . . . . . . . . . . . . . . . . Actions | -11 -10 -10 -9 -9 -9 -8 -8 -8 -7 -7 -7 -7 -6 -6 -5 -5 -5 -5 -4 -4 -4 -4 -4 -3 -3 -2 -1 -1 --------- Run | Yrd Mat Min Mat Min Exi Min Mat Gar Fac Gar Fac Gar Fac Gar Fac Gar Fac Gar Fac Ext Cet Arc Hub Res Gar Res Acc Com Total 28213 | 89 507 499 1203 573 319 268 1379 917 1529 1200 1221 944 1777 868 1893 1066 2180 919 2364 726 347 289 241 639 722 1738 1193 603 Wait 2716 | 5 35 32 138 15 . 17 182 68 80 45 169 34 267 59 266 62 302 51 204 123 57 59 2 44 43 149 163 45 Move 22050 | 57 417 420 936 542 308 233 1116 661 1318 981 983 783 1403 663 1424 836 1548 741 1786 507 245 196 211 516 575 1344 845 455 Hop . | . . . . . . . . . . . . . . . . . . . . . . . . . . . . . Pick Up 237 | 5 3 6 11 1 4 3 14 10 10 8 1 16 6 6 12 8 14 15 22 7 3 1 1 7 12 18 7 6 Fast Attach 286 | 7 5 1 7 . . . 9 1 16 4 7 3 12 12 35 6 23 6 34 6 6 3 4 24 7 27 14 7 Attach 158 | . . 1 5 . . 2 4 4 7 . 2 5 6 10 12 2 20 6 26 3 4 . . 4 1 10 7 17 Detach 82 | . . . 2 . 2 . . 1 5 2 2 1 3 7 6 . 13 4 17 1 2 . . 4 . 6 2 2 Swap 322 | 2 4 4 11 . . 1 11 20 14 15 17 5 14 5 13 14 22 13 49 7 5 2 5 2 8 24 27 8 Drop 355 | 2 3 5 16 . 5 1 13 9 23 7 8 12 11 3 25 10 24 11 37 10 6 3 5 24 14 46 12 10 Fire 1122 | 11 40 29 76 15 . 11 30 56 28 68 12 19 13 23 72 37 149 48 100 30 18 7 6 3 41 58 71 51 Melee 592 | . . . . . . . . 15 20 22 20 58 39 41 27 27 51 23 88 8 1 18 7 11 16 56 44 . Ram 3 | . . . . . . . . . . . . . . . . . 1 . . . . . . . . . . 2 Kick . | . . . . . . . . . . . . . . . . . . . . . . . . . . . . . Crush 5 | . . . . . . . . . . . . . . . . . 5 . . . . . . . . . . . Escape Stasis 229 | . . . . . . . . 25 8 48 . 8 . 38 . 64 8 . 1 24 . . . . 5 . . . Rewire 50 | . . . . . . . . 46 . . . . 1 . 1 . . 1 . . . . . . . . 1 . Trap 6 | . . 1 1 . . . . 1 . . . . 2 1 . . . . . . . . . . . . . . Miscellaneous . | . . . . . . . . . . . . . . . . . . . . . . . . . . . . . Route ------- -11/Scrapyard -10/Materials (discovered 4 exits: *Mat x3 / [*Min]) -10/Mines (discovered 2 exits: *Mat x2) -9/Materials (discovered 5 exits: *Mat x3 / *Min x2) -9/Mines (discovered 3 exits: *Mat x2 / *Exi) -9/Exiles -8/Mines (discovered 2 exits: *Mat x2) -8/Materials (discovered 3 exits: *Fac x2 / Gar) -8/Garrison (discovered 3 exits: *Fac x3) -7/Factory (discovered 4 exits: *Fac / Sto / *Low / Gar) -7/Garrison (discovered 3 exits: *Fac x3) -7/Factory (discovered 5 exits: *Fac x2 / *Sto / *Low / Gar) -7/Garrison (discovered 3 exits: *Fac x3) -6/Factory (discovered 2 exits: *Fac / Gar) -6/Garrison (discovered 2 exits: *Fac x2) -5/Factory (discovered 3 exits: *Fac / [*Upp] / Gar) -5/Garrison (discovered 3 exits: *Fac x3) -5/Factory (discovered 2 exits: *Fac / Gar) -5/Garrison (discovered 3 exits: *Fac x3) -4/Factory (discovered 8 exits: *Res x3 / *Upp x2 / *Ext x2 / Arm) -4/Extension (discovered 2 exits: *Res / *Cet) -4/Cetus (discovered 2 exits: *Res / [*Arc]) -4/Archives (discovered 3 exits: *Res / *Hub x2) -4/Hub_04(d) (discovered 4 exits: *Res x4) -3/Research (discovered 2 exits: *Res / Gar) -3/Garrison (discovered 2 exits: *Res x2) -2/Research (discovered 4 exits: *Acc x3 / [*Qua]) -1/Access -1/Command History --------- Turn | Location | Event 15 | -11/Scrapyard | Discovered new exit (range 16) 113 | -11/Scrapyard | Entered Materials 176 | -10/Materials | Discovered new exit (range 16) 254 | -10/Materials | Discovered new exit (range 8) 340 | -10/Materials | Discovered new exit (range 16) 511 | -10/Materials | Discovered new exit (range 15) 520 | -10/Materials | Build established: Scavenger-Mutant 651 | -10/Materials | Entered Mines 653 | -10/Mines | Assisted by bots powering up and referring to "LRC-V3" 677 | -10/Mines | Learned location of Zion (-6) 715 | -10/Mines | Discovered new exit (range 6) 737 | -10/Mines | Learned location of Storage (-7) 777 | -10/Mines | YI-UF0 nonchalantly dropped a Grenade Launcher on the ground 820 | -10/Mines | Found a hidden stash of uninstalled traps 853 | -10/Mines | Found a damaged Exp. Sensor Array with a note attached 855 | -10/Mines | Found Prototype Device 856 | -10/Mines | Identified Exp. Sensor Array 922 | -10/Mines | Core integrity fell below 50% 986 | -10/Mines | A weapon hastily lodged in a ceiling crevice suddenly fell to the ground 1058 | -10/Mines | Discovered new exit (range 9) 1089 | -10/Mines | Excavation squad dispatched 1089 | -10/Mines | A large section of the Mines collapsed 1142 | -10/Mines | Entered Materials 1142 | -9/Materials | Accompanied by 1 ally 1142 | -9/Materials | Evolved 2 slots: Propulsion x1, Utility x1 1284 | -9/Materials | Discovered new exit (range 5) 1347 | -9/Materials | Identified exit to Mines 1739 | -9/Materials | Discovered new exit (range 3) 1814 | -9/Materials | Build established: Mutant 1834 | -9/Materials | Discovered new exit (range 3) 2506 | -9/Materials | Entered Mines 2530 | -9/Mines | Met a Derelict bent on vengeance 2603 | -9/Mines | Learned location of 1 exit from Materials 2623 | -9/Mines | Received a Rocket Launcher from a helpful Derelict 2727 | -9/Mines | Discovered new exit (range 10) 2728 | -9/Mines | Identified exit to Materials 2898 | -9/Mines | Deemed a non-threat by the Exiles lab entrance 2898 | -9/Mines | Discovered new exit (range 5) 3164 | -9/Mines | Entered Exiles 3196 | -9/Exiles | Met 8R-AWN 3212 | -9/Exiles | Met EX-HEX 3247 | -9/Exiles | Met EX-DEC 3301 | -9/Exiles | Met EX-BIN 3314 | -9/Exiles | Aligned with FarCom system 3315 | -9/Exiles | Given EX-Vault access code 3337 | -9/Exiles | Opened EX-Vault 3344 | -9/Exiles | Found Trap Reconfigurator 3365 | -9/Exiles | Warned to stay clear of 0b10 Research branches 3454 | -9/Exiles | Discovered new exit (range 14) 3465 | -9/Exiles | Left Exiles lab with Trap Reconfigurator 3465 | -9/Exiles | Entered Mines 3593 | -8/Mines | Discovered exit to Materials (range 7) 3764 | -8/Mines | Discovered exit to Materials (range 10) 3778 | -8/Mines | Entered Materials 3778 | -8/Materials | Evolved 2 slots: Utility x1, Weapon x1 3779 | -8/Materials | Identified exit to Factory 3924 | -8/Materials | Repaired Hcp. Storage Unit 4233 | -8/Materials | Build established: Tank 4655 | -8/Materials | Discovered exit to Factory (range 4) 4682 | -8/Materials | Build established: Skirmisher 4749 | -8/Materials | Repaired Flak Cannon 5305 | -8/Materials | Garrison activated, responded to threat 5447 | -8/Materials | Identified exit to Garrison 5450 | -8/Materials | Entered Garrison 5459 | -8/Garrison | Discovered exit to Factory (range 69) 5459 | -8/Garrison | Discovered exit to Factory (range 106) 5459 | -8/Garrison | Discovered exit to Factory (range 51) 5480 | -8/Garrison | Triggered checkpoint 5524 | -8/Garrison | Garrison Relay disabled 5564 | -8/Garrison | Garrison Relay disabled 5714 | -8/Garrison | Triggered checkpoint 5740 | -8/Garrison | Triggered checkpoint 5868 | -8/Garrison | Triggered checkpoint 5895 | -8/Garrison | Garrison Relay disabled 5910 | -8/Garrison | Installed Relay Interface Framework 6078 | -8/Garrison | Triggered checkpoint 6238 | -8/Garrison | Triggered checkpoint 6284 | -8/Garrison | Learned Factory security intel 6374 | -8/Garrison | Build established: Mutant 6632 | -8/Garrison | Entered Factory 6632 | -7/Factory | Accompanied by 3 allies 6632 | -7/Factory | Evolved 2 slots: Propulsion x1, Utility x1 6633 | -7/Factory | Identified exit to Storage 6633 | -7/Factory | Identified exit to Lower Caves 7063 | -7/Factory | Lost 3 allies 7713 | -7/Factory | Discovered new exit (range 15) 8371 | -7/Factory | Found Prototype Launcher 8371 | -7/Factory | Identified Rocket Array 8395 | -7/Factory | Build established: Bothacker-Mutant 8553 | -7/Factory | Identified exit to Garrison 8560 | -7/Factory | Entered Garrison 8666 | -7/Garrison | Triggered checkpoint 8750 | -7/Garrison | Garrison Relay disabled 8854 | -7/Garrison | Triggered checkpoint 8928 | -7/Garrison | Triggered checkpoint 8999 | -7/Garrison | Discovered new exit (range 10) 9042 | -7/Garrison | Triggered checkpoint 9056 | -7/Garrison | Garrison Relay disabled 9069 | -7/Garrison | Expanded RIF knowledge: Signal Jamming 9144 | -7/Garrison | Triggered checkpoint 9219 | -7/Garrison | Build established: Bothacker-Skirmisher 9288 | -7/Garrison | Triggered checkpoint 9392 | -7/Garrison | Discovered new exit (range 8) 9560 | -7/Garrison | Triggered checkpoint 9569 | -7/Garrison | Garrison Relay disabled 9738 | -7/Garrison | Build established: Bothacker-Mutant 9756 | -7/Garrison | Discovered new exit (range 8) 9817 | -7/Garrison | Garrison Relay disabled 9850 | -7/Garrison | Triggered checkpoint 9874 | -7/Garrison | Triggered checkpoint 9939 | -7/Garrison | Garrison Relay disabled 10044 | -7/Garrison | Entered Factory 10044 | -7/Factory | Accompanied by 2 allies 10137 | -7/Factory | Discovered exit to Storage (range 7) 10268 | -7/Factory | Repaired Arm. Huge Wheel 10716 | -7/Factory | Lost 3 allies 10772 | -7/Factory | Discovered new exit (range 15) 10994 | -7/Factory | Discovered exit to Lower Caves (range 14) 11272 | -7/Factory | Discovered new exit (range 9) 11371 | -7/Factory | Garrison activated, responded to threat 11399 | -7/Factory | Identified exit to Garrison 11407 | -7/Factory | Entered Garrison 11407 | -7/Garrison | Accompanied by 2 allies 11422 | -7/Garrison | Learned Factory security intel 11443 | -7/Garrison | Triggered checkpoint 11482 | -7/Garrison | Garrison Relay disabled 11579 | -7/Garrison | Triggered checkpoint 11589 | -7/Garrison | Triggered checkpoint 11739 | -7/Garrison | Triggered checkpoint 11742 | -7/Garrison | Garrison Relay disabled 11808 | -7/Garrison | Discovered new exit (range 14) 11838 | -7/Garrison | Garrison Relay disabled 11845 | -7/Garrison | Triggered checkpoint 11854 | -7/Garrison | Expanded RIF knowledge: Coupler Efficiency 11982 | -7/Garrison | Spotted B-75 Beast 11986 | -7/Garrison | Assimilated Beast 4a with formatsys_high 11989 | -7/Garrison | Spotted B-75 Beast 12017 | -7/Garrison | Allies destroyed B-75 Beast 12175 | -7/Garrison | Triggered checkpoint 12210 | -7/Garrison | Discovered new exit (range 13) 12284 | -7/Garrison | Build established: Mutant 12329 | -7/Garrison | Garrison Relay disabled 12455 | -7/Garrison | Discovered new exit (range 13) 12567 | -7/Garrison | Entered Factory 12567 | -6/Factory | Evolved 2 slots: Utility x2 12774 | -6/Factory | Spotted B-75 Beast 12943 | -6/Factory | Allies destroyed B-75 Beast 13034 | -6/Factory | Build established: Bothacker-Assassin 13958 | -6/Factory | Repaired Imp. Trap Extractor 14042 | -6/Factory | Discovered new exit (range 12) 14558 | -6/Factory | Build established: Hacker-Mutant 14586 | -6/Factory | Identified exit to Garrison 14608 | -6/Factory | Entered Garrison 14768 | -6/Garrison | Triggered checkpoint 14851 | -6/Garrison | Garrison Relay disabled 14924 | -6/Garrison | Triggered checkpoint 15048 | -6/Garrison | H-XX Assembler disabled 15177 | -6/Garrison | Discovered new exit (range 5) 15204 | -6/Garrison | Expanded RIF knowledge: Watcher Feeds 15241 | -6/Garrison | Learned Factory security intel 15323 | -6/Garrison | Triggered checkpoint 15428 | -6/Garrison | Triggered checkpoint 15450 | -6/Garrison | Found embedded Infiltrators 15487 | -6/Garrison | Garrison Relay disabled 15517 | -6/Garrison | Discovered new exit (range 12) 15540 | -6/Garrison | Triggered checkpoint 15594 | -6/Garrison | Garrison Relay disabled 15608 | -6/Garrison | Spotted Executioner 15608 | -6/Garrison | Spotted Executioner 15652 | -6/Garrison | Lost 3 allies 15658 | -6/Garrison | Lost 3 parts (1n2w) 15802 | -6/Garrison | Entered Factory 15802 | -5/Factory | Evolved 2 slots: Utility x2 15827 | -5/Factory | Lost 3 parts (3n) 16011 | -5/Factory | Build established: Mutant 16596 | -5/Factory | Repaired F-cell Engine 16711 | -5/Factory | Lost 9 parts (4n3u2w) 16827 | -5/Factory | Garrison activated, responded to threat 16936 | -5/Factory | Discovered new exit (range 17) 16948 | -5/Factory | Cargo convoy interrupted 17183 | -5/Factory | Repaired F-cell Engine 17394 | -5/Factory | Build established: Botlord-Mutant 17603 | -5/Factory | Found Imp. Powered Armor 18099 | -5/Factory | Fabricated Exp. Hacking Suite (x1) 18124 | -5/Factory | Discovered new exit (range 18) 18309 | -5/Factory | Identified exit to Garrison 18309 | -5/Factory | Entered Garrison 18511 | -5/Garrison | Triggered checkpoint 18590 | -5/Garrison | Rewired Striker 18596 | -5/Garrison | Rewired Executioner 18626 | -5/Garrison | Discovered new exit (range 12) 18648 | -5/Garrison | Garrison Relay disabled 18704 | -5/Garrison | Spotted B-90 Cyclops 18707 | -5/Garrison | Rewired B-75 Beast 18709 | -5/Garrison | Rewired B-90 Cyclops 18724 | -5/Garrison | Allies destroyed B-90 Cyclops 18831 | -5/Garrison | Triggered checkpoint 18872 | -5/Garrison | Triggered checkpoint 18953 | -5/Garrison | Triggered checkpoint 18973 | -5/Garrison | Garrison Relay disabled 19009 | -5/Garrison | Rescued a captive Derelict 19010 | -5/Garrison | Rescued a captive Derelict 19218 | -5/Garrison | Discovered new exit (range 11) 19233 | -5/Garrison | Triggered checkpoint 19257 | -5/Garrison | Triggered checkpoint 19257 | -5/Garrison | Garrison Relay disabled 19298 | -5/Garrison | Discovered new exit (range 22) 19298 | -5/Garrison | Discovered new exit (range 51) 19298 | -5/Garrison | Discovered new exit (range 84) 19393 | -5/Garrison | Spotted B-75 Beast 19457 | -5/Garrison | Found Unknown Hackware 19457 | -5/Garrison | Identified Relay Coupler [Proto] 19461 | -5/Garrison | Found Relay Coupler [Proto] 19469 | -5/Garrison | Found Relay Coupler [Proto] 19490 | -5/Garrison | Lost 3 allies 19582 | -5/Garrison | Expanded RIF knowledge: Structural Interface 19625 | -5/Garrison | Triggered checkpoint 19629 | -5/Garrison | Garrison Relay disabled 19706 | -5/Garrison | Entered Factory 19706 | -5/Factory | Accompanied by 8 allies 19909 | -5/Factory | Discovered new exit (range 5) 20228 | -5/Factory | Lost 3 allies 20334 | -5/Factory | Lost 3 allies 21100 | -5/Factory | Repaired F-cell Engine 21162 | -5/Factory | Core integrity fell below 50% 21180 | -5/Factory | System corruption reached 10% 21978 | -5/Factory | Repaired Adv. Remote Datajack 22152 | -5/Factory | Garrison activated, responded to threat 22561 | -5/Factory | Core integrity fell below 20% 22573 | -5/Factory | Identified exit to Garrison 22573 | -5/Factory | Entered Garrison 22643 | -5/Garrison | Garrison Relay disabled 22793 | -5/Garrison | Triggered checkpoint 22799 | -5/Garrison | Triggered checkpoint 22860 | -5/Garrison | Lost 3 allies 22991 | -5/Garrison | Triggered checkpoint 23019 | -5/Garrison | Discovered new exit (range 11) 23085 | -5/Garrison | Triggered checkpoint 23164 | -5/Garrison | Lost 4 allies 23245 | -5/Garrison | Garrison Relay disabled 23557 | -5/Garrison | Triggered checkpoint 23558 | -5/Garrison | Garrison Relay disabled 23648 | -5/Garrison | Discovered new exit (range 10) 23857 | -5/Garrison | Garrison Relay disabled 23883 | -5/Garrison | Triggered checkpoint 23909 | -5/Garrison | Expanded RIF knowledge: Program Shield 23984 | -5/Garrison | Discovered new exit (range 15) 23986 | -5/Garrison | Rescued a captive Derelict 24010 | -5/Garrison | Entered Factory 24010 | -4/Factory | Accompanied by 2 allies 24010 | -4/Factory | Evolved 2 slots: Propulsion x1, Utility x1 24072 | -4/Factory | Found Prototype Processor 24072 | -4/Factory | Identified Exp. Signal Interpreter 24183 | -4/Factory | Discovered new exit (range 4) 24260 | -4/Factory | First assault squad dispatched 24387 | -4/Factory | Identified exit to Upper Caves 24387 | -4/Factory | Identified exit to Extension 24387 | -4/Factory | Identified exit to Armory 24424 | -4/Factory | Build established: Botlord-Assassin 24500 | -4/Factory | Lost 3 parts (2n1u) 24518 | -4/Factory | Lost 3 allies 25121 | -4/Factory | Discovered new exit (range 23) 25121 | -4/Factory | Discovered new exit (range 107) 25140 | -4/Factory | Build established: Botlord-Mutant 25207 | -4/Factory | P-70 Sage assimilated allied Administrator 7a 25429 | -4/Factory | Lost 3 parts (1n1u1w) 25607 | -4/Factory | Identified exit to Research 25760 | -4/Factory | Crushed by falling debris 25761 | -4/Factory | System corruption reached 10% 25791 | -4/Factory | Lost 3 parts (2u1w) 26108 | -4/Factory | Garrison activated, responded to threat 26190 | -4/Factory | Fabricated Exp. Hacking Suite (x1) 26863 | -4/Factory | Entered Extension 26895 | -4/Extension | Rescued a captive Derelict 26896 | -4/Extension | Rescued a captive Derelict 26951 | -4/Extension | Rescued a captive Derelict 26952 | -4/Extension | Rescued a captive Derelict 27031 | -4/Extension | Lost 3 allies 27036 | -4/Extension | Rescued a captive Derelict 27130 | -4/Extension | Rescued a captive Derelict 27131 | -4/Extension | Rescued a captive Derelict 27156 | -4/Extension | Rescued a captive Derelict 27157 | -4/Extension | Rescued a captive Derelict 27237 | -4/Extension | P-70 Sage assimilated allied 0B-CWB(l) 27367 | -4/Extension | Rescued a captive Derelict 27454 | -4/Extension | Rescued a captive Derelict 27454 | -4/Extension | Rescued a captive Derelict 27523 | -4/Extension | Rescued a captive Derelict 27564 | -4/Extension | Rescued a captive Derelict 27671 | -4/Extension | Rescued A7 27702 | -4/Extension | Discovered exit to Research (range 10) 27704 | -4/Extension | Discovered new exit (range 6) 27750 | -4/Extension | Entered Cetus 27750 | -4/Cetus | Accompanied by 12 allies (A7) 27755 | -4/Cetus | Acquired a Cetus Manufacturing Module code from A7 27774 | -4/Cetus | Spotted Cetus Guard 27774 | -4/Cetus | Spotted Cetus Guard 27775 | -4/Cetus | Spotted Cetus Guard 27775 | -4/Cetus | Spotted Cetus Guard 27793 | -4/Cetus | Allies destroyed Cetus Guard 27794 | -4/Cetus | Allies destroyed Cetus Guard 27800 | -4/Cetus | Allies destroyed Cetus Guard 27806 | -4/Cetus | Allies destroyed Cetus Guard 27828 | -4/Cetus | Lost 4 allies 27880 | -4/Cetus | Started Cetus Manufacturing Module 27898 | -4/Cetus | Escorted A7 to Cetus Mainframe 27905 | -4/Cetus | Manufactured an Enhanced Grunt 27930 | -4/Cetus | Manufactured an Enhanced Grunt 27955 | -4/Cetus | Manufactured an Enhanced Grunt 27980 | -4/Cetus | Manufactured an Enhanced Grunt 28005 | -4/Cetus | Manufactured an Enhanced Grunt 28031 | -4/Cetus | Discovered new exit (range 15) 28053 | -4/Cetus | Discovered exit to Research (range 27) 28070 | -4/Cetus | Spotted Cetus Guard 28070 | -4/Cetus | Spotted Cetus Guard 28073 | -4/Cetus | Spotted Cetus Guard 28074 | -4/Cetus | Spotted Cetus Guard 28082 | -4/Cetus | Allies destroyed Cetus Guard 28090 | -4/Cetus | Destroyed Cetus Guard 28094 | -4/Cetus | Allies destroyed Cetus Guard 28097 | -4/Cetus | Destroyed Cetus Guard 28108 | -4/Cetus | Met Revision 17 28206 | -4/Cetus | Entered Archives 28206 | -4/Archives | Accompanied by 12 allies (A7) 28211 | -4/Archives | Received a hacking code to weaken MAIN.C 28277 | -4/Archives | Lost 5 allies 28319 | -4/Archives | Discovered new exit (range 15) 28340 | -4/Archives | Discovered exit to Research (range 15) 28420 | -4/Archives | Discovered new exit (range 15) 28581 | -4/Archives | Entered Hub_04(d) 28581 | -4/Hub_04(d) | Accompanied by 6 allies 28739 | -4/Hub_04(d) | Found Unknown Device 28739 | -4/Hub_04(d) | Identified Quantum Capacitor 28773 | -4/Hub_04(d) | Discovered exit to Research (range 14) 28817 | -4/Hub_04(d) | Network Hub disabled 28829 | -4/Hub_04(d) | Network Hub disabled 28831 | -4/Hub_04(d) | Spotted Lightning 28862 | -4/Hub_04(d) | Spotted Lightning 28876 | -4/Hub_04(d) | Entered Research 28876 | -3/Research | Evolved 2 slots: Propulsion x1, Utility x1 28904 | -3/Research | Lost 4 allies 29076 | -3/Research | Revision forces began assault on 0b10 29118 | -3/Research | Met up with Revision 17++ 29174 | -3/Research | Discovered new exit (range 29) 29474 | -3/Research | Central database locked down 29546 | -3/Research | Build established: Botlord-Assassin 29548 | -3/Research | Identified exit to Garrison 29576 | -3/Research | Research terminal network offline 29606 | -3/Research | Entered Garrison 29802 | -3/Garrison | Triggered checkpoint 29845 | -3/Garrison | Rescued a captive Derelict 29851 | -3/Garrison | Rescued a captive Derelict 29865 | -3/Garrison | Garrison Relay disabled 29909 | -3/Garrison | Build established: Botlord-Mutant 29956 | -3/Garrison | Spotted B-86 Titan 29987 | -3/Garrison | Assimilated Titan 8a with formatsys_high 29996 | -3/Garrison | Triggered checkpoint 29996 | -3/Garrison | Triggered checkpoint 30003 | -3/Garrison | Triggered checkpoint 30033 | -3/Garrison | Expanded RIF knowledge: Hotswap 30042 | -3/Garrison | Lost 4 allies 30115 | -3/Garrison | Discovered new exit (range 12) 30118 | -3/Garrison | Triggered checkpoint 30138 | -3/Garrison | Triggered checkpoint 30145 | -3/Garrison | Garrison Relay disabled 30232 | -3/Garrison | Triggered checkpoint 30247 | -3/Garrison | Garrison Relay disabled 30416 | -3/Garrison | Discovered new exit (range 10) 30441 | -3/Garrison | Entered Research 30441 | -2/Research | Accompanied by 2 allies 30441 | -2/Research | Evolved 2 slots: Power x1, Utility x1 30470 | -2/Research | Lost 3 allies 30483 | -2/Research | Identified exit to Access 30486 | -2/Research | Spotted B-90 Cyclops 30493 | -2/Research | Found Prototype Device 30493 | -2/Research | Identified Exp. Phase Shifter 30870 | -2/Research | Found Prototype Launcher 30870 | -2/Research | Identified Mni. Smartbomb Launcher 31493 | -2/Research | System corruption reached 10% 31801 | -2/Research | Discovered new exit (range 19) 31927 | -2/Research | Found Prototype Launcher 31927 | -2/Research | Identified Gui. Micro-nuke Launcher 32571 | -2/Research | Found Beam Splitter 32912 | -2/Research | System corruption reached 30% 33118 | -2/Research | Spotted B-90 Cyclops 33158 | -2/Research | Entered Access 33158 | -1/Access | Evolved 2 slots: Utility x1, Weapon x1 33176 | -1/Access | Lost 3 parts (1p2u) 33444 | -1/Access | Build established: Botlord-Assassin 33505 | -1/Access | Garrison activated, responded to threat 33745 | -1/Access | Identified exit to Command 34327 | -1/Access | Build established: Botlord-Tank 34536 | -1/Access | Destroyed 7 combat bots 34860 | -1/Access | Found Prototype Device 34860 | -1/Access | Identified Exp. Actuator Array 34908 | -1/Access | First assault squad dispatched 34982 | -1/Access | Entered Command 34982 | -1/Command | Accompanied by 1 ally 35316 | -1/Command | Lost 3 allies 35423 | -1/Command | Spotted M Guard 35423 | -1/Command | Spotted M Guard 35423 | -1/Command | Spotted Combat Programmer 35425 | -1/Command | Spotted Combat Programmer 35482 | -1/Command | First assault squad dispatched 35496 | -1/Command | System corruption reached 10% 35571 | -1/Command | Lost 27 parts (4p6n10u7w) 35578 | -1/Command | Core integrity fell below 50% 35604 | -1/Command | Spotted B-99 Colossus 35658 | -1/Command | Core integrity fell below 20% 35672 | -1/Command | Destroyed by Combat Programmer with EMDS Last Messages --------------- 35632_ Slammed into R-10 Processor. 35632_ Relay Coupler [NC] destroyed. 35632_ System corrupted by crushing effect (+1). 35645_ System corrupted: IFF burst signal emitted. 35649_ Penetrated by EMDS Slug. 35657_ Relay Coupler [Swarmer] destroyed. 35657_ Relay Coupler [Duelist] destroyed. 35657_ System corrupted by crushing effect (+4). 35657_ System corrupted by crushing effect (+1). 35657_ Relay Coupler [Proto] destroyed. 35659_ Penetrated by EMDS Slug. 35664_ Knocked back. 35666_ Acquired Biometal Leg. 35666_ Penetrated by EMDS Slug. 35668_ Acquired Biometal Leg. 35670_ EMDS Slug penetrates Quantum Router. 35670_ Quantum Router disabled. 35671_ Acquired Biometal Leg. 35672_ Penetrated by EMDS Slug. Map ----- +----------------------------------------------------+ | ?????#######/####+##????????#*** +??????? | | ????####### % #?????????#*** #??????? | | ????# #####+#####** #??????? | | ????# +??????? | | ????# #############??????? | | ????# #????????????+?????? | | ????## #??????????????????? | | ?????# "*"" ########+####???????????????? | | ?????# " "" #?# #???????????????? | | ?????# """ #?# #???????????+???? | | ?????# ### "" #???????????????? | | ?????# ! # """" #???????????????? | | ?????# / """" ########????????? | | ?????# ##+######## " / #????????? | | ?????# #???? ??# ###### #????????? | | ?????# #???? ??# #????# #????????? | | ####?# #???"" ??### ;######????# #????????? | | #?# # """" ?## % ##???????# #????????? | | #?# ### # """" # #??????## ##???????? | | #?# ??# # "" ## k ######### ######### | | # ##?# ??# # % % # ] p c | | ??" =??# # # ##### # ###### | | ?*"% ??# # "" %%; #???# #####????# | | %+ ??# # """" + c #???# #????????# | | +% ??# # "" ; c #???# #????????# | | # ##?# ??# # "" @c #???# #????????# | | ###==??# # #???# #?######## | | # #%[??# # ##### #?# # ## | | # "=[#?# # p #?# # #? | | #####%*%### #########[ ####### #?# + #? | | ??# %!!! ?????# #?# # #? | | ??#%%!*=! ! ?????# #?# # #? | | ??###%[ #???## ### # #? | | ????# / R ##???# ######### #? | | ????# = != #????# T" # # ## | | ????#""!%!* """" """ #????# "" | | ????#"" % """" "" "R #????# ## ## | | ????#"T """" """" #????# ## #? | | ????#"" """" """ #??#####+#### ## | | ????#"" #??# # # ## ## | | ????# #??# ! ####### ## | | ????# #??# #?????# ## | | ????# #??# #?????# ## | | ????##+##############"##+#################????# ## | | ??????????????????? # #????# ## | | ????????????????? # #????# ## | | ????????????????"""" + "" "" #????# ## | | ?????????????? ""Y"" # """" """" #????# | | ????????????? ?# """" """"????????#### | | ????????????? ?# "" "?????????????? | +----------------------------------------------------+ Best States ------------- Heat Dissipation 90 Energy Generation 45 Energy Capacity 600 Matter Stores 526 Matter Capacity 800 Sight Range 23 Robot Scan Range 14 Terrain Scan Range 24 Terrain Scan Density 10 Jamming Range 16 Cloak Strength 3 Corruption Block 20 Armor Coverage 1200 Resistance: KI 30 Resistance: TH 75 Point Defense Rating 240 Weapon Cycling 25 Phase Shifting 20 Evasion (%) 70 Targeting Accuracy 8 Melee Accuracy 8 Target Analysis 8 Core Analysis 6 Armor Integrity Analysis 30 Recoil Reduction 6 Matter Filtering 50 Force Boost 30 Offensive Hacking 28 Defensive Hacking 12 Relay Coupler Types 7 Relay Coupler Value 235 Trap Extractor Capacity 6 Item Schematics ----------------- Exp. Hacking Suite | -6/Factory | Hacked Robot Schematics ------------------ None Fabricated ------------ Exp. Hacking Suite | x1 | -5/Factory Exp. Hacking Suite | x1 | -4/Factory Alien Tech Used ----------------- None Achievements -------------- No Explosion For You Challenges ------------ None Game ------ Seed GreatChainAutopenetrator Manual? 0 Play Time 09:25:59 Cumulative 143.1 hours Start 2025.01.16 @ 17:00:25 End 2025.01.18 @ 17:28:13 Sessions 9 Manual Loads 0 Difficulty Rogue Special Mode None Game No. 29 Rogue 29 Adventurer 0 Explorer 0 Win Type - Total 6 Types 3/0/2/1/0/0/0/0/0 Lore% 47 Gallery% 63 Achievement% 60 Wizard Run 0 Options --------- Layout 1 ASCII 0 Keyboard 0 Movement Mouse Keybinds 0 Fullscreen 1 Font 24/Smallcaps Map View 50x35 Zoom Use 0% Tactical HUD 1 Map Filters NONE Filters NONE Steam 1 RUN: 0c6f3dc0-7187-4834-bd11-14f86f3b891a